{"text_format":"1","workbook":"xlsx","n_sheets":6,"sheets":["RegistroInf","Edos_Mpios","Filtro_Edo_Mpios","Diagrama","Solicitud","Presupuesto y Programa de Obra"],"not_rendered":{"charts":0,"images":5,"macros":1,"external_links":0,"defined_names":9,"comments":0,"pivot_tables":0},"unopened":[],"bounds":{"document_bytes":16777216,"sheet_cells":100000,"rows_first":2000,"rows_last":500,"rows_between":2000,"halvings":0,"cell_chars":16384,"cell_head_chars":4096},"cells_cut":0,"cells_raw":0,"read":"whole","date_system":"1900"}

{"sheet":"RegistroInf","index":0,"n_rows":96,"n_cols":48,"rows_kept":96,"cut":false,"hidden":true,"merged":[[6,46,6,47],[6,43,6,44],[6,40,6,41],[6,37,6,38],[7,15,7,16],[6,25,6,26],[6,28,6,29],[6,31,6,32],[6,34,6,35]]}
[null,"Nombre",null,null,"Presupuesto Paramétrico",{"$f":"+W32","v":{"$error":"#DIV/0!"}}]
[null,"Direccion",null,null,"Valor Único",{"$f":"+W31","v":{"$error":"#DIV/0!"}}]
[null,"M2",null,null,"Valor Terreno"]
[null,"Estado",null,null,"Valor Terreno + Presupuesto",{"$f":"+F1+F3","v":{"$error":"#DIV/0!"}}]
[null,"Municipio",null,null,"Valor Avalúo",null,null,null,null,null,null,null,null,null,null,null,null,null,null,null,null,null,"Monto Paramétrico",{"$f":"+X6*X7","v":0}]
[null,"FIC",{"$f":"+Filtro_Edo_Mpios!K2","v":0},null,null,null,null,null,null,null,null,null,null,null,null,null,null,null,null,null,null,null,"Unitario Modelo",{"$f":"+IF($T$7=\"A\",Z24,IF($T$7=\"B\",AC24,IF($T$7=\"C\",AF24,IF($T$7=\"D\",AI24,IF($T$7=\"E\",AL24,IF($T$7=\"F\",AO24,IF($T$7=\"G\",AR24,IF($T$7=\"H\",AU24))))))))","v":false}]
[null,null,null,null,null,null,null,null,null,null,null,null,null,null,null,null,null,null,"Modelo Vivienda:",null,null,null,"SUPERFICIE DEL CLIENTE",{"$f":"+C3","v":0},null,"A",null,null,"B",null,null,"C",null,null,"D",null,null,"E",null,null,"F",null,null,"G",null,null,"H"]
[null,"Carpintería / GUARDA",null,null,null,null,null,null,null,null,"Cimentación",null,"FRR",{"$f":"+M10*M11*M12*M13*M14*M15","v":0},null,"ORIGEN",null,null,"Concepto","Datos",null,"FRR","Monto","% FINAL",null,56860.341987266365,0.14963247891385886,null,105232.55927763697,0.15475376364358379,null,112831.20434572875,9.0264963476582999E-2,null,243952.30278875961,0.12839594883618927,null,501243.20313073602,0.125310800782684,null,787150,0.1211,null,1056810.3165849091,0.1067485168267585,null,1364072.6972532461,0.11759247390114191]
[null,null,"NO APLICA","Económica","Media","Alta","Residencial","Plus","FRR",null,null,"PARAMETRO","SI",null,null,"CIMENTACION",{"$f":"N8","v":0},null,"Cimentacion",{"$f":"+U9*$X$5","v":0},{"$f":"+IF($T$7=\"A\",AA8,IF($T$7=\"B\",AD8,IF($T$7=\"C\",AG8,IF($T$7=\"D\",AJ8,IF($T$7=\"E\",AM8,IF($T$7=\"F\",AP8,IF($T$7=\"G\",AS8,IF($T$7=\"H\",AV8))))))))","v":false},{"$f":"+Q9","v":0},{"$f":"V9*T9","v":0},{"$f":"+W9/$W$28","v":{"$error":"#DIV/0!"}},null,35064.344613945017,9.2274591089328992E-2,null,50135.559051760305,7.3728763311412218E-2,null,222516.31417078312,0.17801305133662651,null,372298.04660100793,0.19594634031631997,null,750957.62844492868,0.18773940711123216,null,1192100,0.18340000000000001,null,1965022.8688854347,0.19848715847327622,null,2492840,0.21490000000000001]
[null,"PARAMETRO","Losacero",0.95,1,1.1000000000000001,1.1499999999999999,1.2,{"$f":"+I11*I12*I13*I14","v":0},null,"Mampostería",1.02,null,null,null,"ESTRUCTURA DE CONCRETO",{"$f":"N16","v":0},null,"Estructura De Concreto",{"$f":"+U10*$X$5","v":0},{"$f":"+IF($T$7=\"A\",AA9,IF($T$7=\"B\",AD9,IF($T$7=\"C\",AG9,IF($T$7=\"D\",AJ9,IF($T$7=\"E\",AM9,IF($T$7=\"F\",AP9,IF($T$7=\"G\",AS9,IF($T$7=\"H\",AV9))))))))","v":false},{"$f":"+Q10","v":0},{"$f":"V10*T10","v":0},{"$f":"+W10/$W$28","v":{"$error":"#DIV/0!"}},null,32509.000931641447,8.555000245168802E-2,null,107290.02869309756,0.15777945396043758,null,165663.75091863846,0.13253100073491075,null,240092.06369574313,0.12636424405039112,null,317373.37124169921,7.9343342810424808E-2,null,705900,0.1086,null,1043255.6335891164,0.10537935692819357,null,1357200,0.11700000000000001]
[null,"Puertas",null,null,null,null,null,null,{"$f":"+SUM(C11:H11)","v":0},null,"Zapatas",1,null,null,null,"ALBAÑILERIA",{"$f":"N24","v":0},null,"Albañileria",0,false,0,0,{"$error":"#DIV/0!"},null,31761.587037245659,8.3583123782225419E-2,null,43209.705257740497,6.3543684202559556E-2,null,55727.472627910422,4.4581978102328335E-2,null,75057.877920706684,3.950414627405615E-2,null,101817.1235896728,2.5454280897418202E-2,null,159900,2.46E-2,null,147315.21079533751,1.4880324322761365E-2,null,185600,1.6E-2]
[null,"Clósets",null,null,null,null,null,null,{"$f":"+SUM(C12:H12)","v":0},null,"Pilotes",1.03,null,null,null,"INSTALACION HIDRAULICA",{"$f":"I41","v":1},null,"Instalacion Hidraulica",0,false,1,0,{"$error":"#DIV/0!"},null,18329.200428761313,4.8234737970424504E-2,null,16586.699713117789,2.4392205460467335E-2,null,24801.272618523933,1.9841018094819148E-2,null,37885.457402836,1.9939714422545263E-2,null,63238.67114770117,1.5809667786925292E-2,null,99450,1.5299999999999999E-2,null,123063.17103413166,1.2430623336780976E-2,null,139200,1.2E-2]
[null,"Cocina integral",null,null,null,null,null,null,0,null,"MIXTO",1.04,null,null,null,"INSTALACION SANITARIA",{"$f":"I40","v":1},null,"Instalacion Sanitaria",0,false,1,0,{"$error":"#DIV/0!"},null,14232.202248160698,3.7453163810949208E-2,null,37853.831994559463,5.5667399991999211E-2,null,45412.424798113185,3.6329939838490546E-2,null,69343.317248613865,3.6496482762428346E-2,null,72380.51108706696,1.809512777176674E-2,null,113750.00000000001,1.7500000000000002E-2,null,146801.47124716197,1.4828431439107271E-2,null,177480,1.5299999999999999E-2]
[null,"Otro",null,null,null,null,null,null,0,null,"DESCONOCIDO",1,null,null,null,"INSTALACION ELECTRICA",{"$f":"I39","v":1},null,"Instalacion Electrica",0,false,1,0,{"$error":"#DIV/0!"},null,28285.128043969122,7.4434547484129268E-2,null,9089.0281228093572,1.336621782766082E-2,null,8173.7416782836717,6.5389933426269371E-3,null,9019.1307773422232,4.7469109354432758E-3,null,5519.6002768678663,1.3799000692169667E-3,null,8450,1.2999999999999999E-3,null,12831.153596995176,1.2960761209086036E-3,null,13919.999999999998,1.1999999999999999E-3]
[null,"Ventanería / CANCELERIA",null,null,null,null,null,null,null,null,"OTRO",1.03,null,null,null,"INSTALACION DE GAS",{"$f":"I42","v":1},null,"Instalacion De Gas",0,false,1,0,{"$error":"#DIV/0!"},null,55163.161048119488,0.14516621328452498,null,103701.88347978149,0.15250276982320807,null,293085.34570461669,0.23446827656369335,null,419249.77734033286,0.22065777754754362,null,739922.41213568824,0.18498060303392205,null,1161550,0.1787,null,2173631.9167007082,0.219558779464718,null,2079879.9999999998,0.17929999999999999]
[null,null,"NO APLICA","Económica","Media","Alta","Residencial","Plus","FRR",null,"Losas de entrepiso (ESTRUCTURA DE CONCRETO)",null,"FRR",{"$f":"+M18*M19*M20*M21*M22*M23","v":0},null,"ACABADOS INTERIORES",{"$f":"I26","v":0},null,"Acabados Interiores",0,false,0,0,{"$error":"#DIV/0!"},null,33189.543573654395,8.7340904141195774E-2,null,82094.734295988135,0.12072755043527668,null,95040.707565496719,7.6032566052397374E-2,null,161782.4620568057,8.5148664240424055E-2,null,443294.35906883853,0.11082358976720963,null,696150,0.1071,null,1025660.9331498125,0.10360211445957702,null,1434920,0.1237]
[null,"PARAMETRO",1,0.95,1,1.1000000000000001,1.1499999999999999,1.2,{"$f":"I18*I19*I20*I21*I22*I23","v":0},null,null,"PARAMETRO","SI",null,null,"ACABADOS EXTERIORES",{"$f":"I36","v":1},null,"Acabados Exteriores",0,false,1,0,{"$error":"#DIV/0!"},null,13756.701521744026,3.6201846109852699E-2,null,28158.947328289119,4.1410216659248704E-2,null,52541.09238356095,4.2032873906848761E-2,null,63766.706151868493,3.3561424290457102E-2,null,84256.656527647297,2.1064164131911825E-2,null,131950,2.0299999999999999E-2,null,255376.21212134513,2.5795576981954053E-2,null,331760,2.86E-2]
[null,"Cristales",null,null,null,null,null,null,{"$f":"+SUM(C18:H18)","v":0},null,"Losa Maciza de concreto",1.02,null,null,null,"ACCESOS",{"$f":"I45","v":1},null,"Accesos",0,false,1,0,{"$error":"#DIV/0!"},null,13692.202577257438,3.6032112045414309E-2,null,25995.002605279085,3.8227945007763359E-2,null,35901.503031606269,2.8721202425285013E-2,null,49080.478466903958,2.5831830772054715E-2,null,92456.403745897027,2.3114100936474258E-2,null,144300,2.2200000000000001E-2,null,237763.85554792988,2.4016551065447464E-2,null,342200,2.9499999999999998E-2]
[null,"Cancelería",null,null,null,null,null,null,0,null,"Vigueta y bovedilla",1,null,null,null,"CANCELERIA",{"$f":"I17","v":0},null,"Canceleria",0,false,0,0,{"$error":"#DIV/0!"},null,40966.296536786031,0.10780604351785797,null,54792.367822626802,8.0577011503862941E-2,null,87119.713954908206,6.969577116392657E-2,null,123969.99613044066,6.5247366384442451E-2,null,364243.6975007733,9.1060924375193322E-2,null,572000,8.7999999999999995E-2,null,712734.1425825546,7.1993347735611571E-2,null,698320,6.0199999999999997E-2]
[null,"Portones/rejas",null,null,null,null,null,null,0,null,"Losacero",1.03,null,null,null,"MOBILIARIO FIJO",{"$f":"I48","v":1},null,"Mobiliario Fijo",0,false,1,0,{"$error":"#DIV/0!"},null,6190.2961845840055,1.629025311732633E-2,null,15859.647481400669,2.3323011002059808E-2,null,51185.462073956303,4.094836965916504E-2,null,34502.386663136924,1.8159150875335223E-2,null,9208.892963201457,2.3022232408003644E-3,null,14300,2.2000000000000001E-3,null,52006.840712250007,5.2532162335606064E-3,null,58000,5.0000000000000001E-3]
[null,"Protecciones",null,null,null,null,null,null,0,null,"MIXTO",1.04,null,null,null,"CARPINTERIA",{"$f":"I10","v":0},null,"Guarda",0,false,0,0,{"$error":"#DIV/0!"},null,null,null,null,null,null,null,null,null,null,null,null,null,159769.63496752622,3.9942408741881555E-2,null,250900.00000000003,3.8600000000000002E-2,null,278764.96180994413,2.8158076950499409E-2,null,419920.00000000006,3.6200000000000003E-2]
[null,"Barandales",null,null,null,null,null,null,0,null,"DESCONOCIDO",1,null,null,null,"EQUIPO",{"$f":"+IF($T$7=\"A\",\"\",IF($T$7=\"B\",\"\",IF($T$7=\"C\",\"\",IF($T$7=\"D\",\"\",IF($T$7=\"E\",1,IF($T$7=\"F\",1,IF($T$7=\"G\",1,IF($T$7=\"H\",1))))))))","v":false},null,"Equipo",{"$f":"+IF($T$7=\"E\",U22*$X$5,IF($T$7=\"F\",U22*$X$5,IF($T$7=\"G\",U22*$X$5,IF($T$7=\"H\",U22*$X$5,IF($T$7=\"A\",\"\",IF($T$7=\"B\",\"\",IF($T$7=\"C\",\"\",IF($T$7=\"D\",\"\"))))))))","v":false},{"$f":"+IF($T$7=\"A\",\"\",IF($T$7=\"B\",\"\",IF($T$7=\"C\",\"\",IF($T$7=\"D\",\"\",IF($T$7=\"E\",AM21,IF($T$7=\"F\",AP21,IF($T$7=\"G\",AS21,IF($T$7=\"H\",AV21))))))))","v":false},false,{"$f":"IF(Q22=\"\",,V22*T22)","v":0},{"$f":"+IF(Q22=\"\",\"\",W22/$W$28)","v":{"$error":"#DIV/0!"}},null,null,null,null,null,null,null,null,null,null,null,null,null,294317.84322685644,7.3579460806714111E-2,null,462150,7.1099999999999997E-2,null,668961.32094486407,6.7571850600491326E-2,null,504599.99999999994,4.3499999999999997E-2]
[null,"Otro",null,null,null,null,null,null,0,null,"OTRO",1.03,null,null,null,"ACCESORIAS",{"$f":"+IF($T$7=\"A\",\"\",IF($T$7=\"B\",\"\",IF($T$7=\"C\",\"\",IF($T$7=\"D\",\"\",IF($T$7=\"E\",1,IF($T$7=\"F\",1,IF($T$7=\"G\",1,IF($T$7=\"H\",1))))))))","v":false},null,"Accesorias",{"$f":"+IF($T$7=\"E\",U23*$X$5,IF($T$7=\"F\",U23*$X$5,IF($T$7=\"G\",U23*$X$5,IF($T$7=\"H\",U23*$X$5,IF($T$7=\"A\",\"\",IF($T$7=\"B\",\"\",IF($T$7=\"C\",\"\",IF($T$7=\"D\",\"\"))))))))","v":false},{"$f":"+IF($T$7=\"A\",\"\",IF($T$7=\"B\",\"\",IF($T$7=\"C\",\"\",IF($T$7=\"D\",\"\",IF($T$7=\"E\",AM22,IF($T$7=\"F\",AP22,IF($T$7=\"G\",AS22,IF($T$7=\"H\",AV22))))))))","v":false},false,{"$f":"IF(Q23=\"\",,V23*T23)","v":0},{"$f":"+IF(Q23=\"\",\"\",W23/$W$28)","v":{"$error":"#DIV/0!"}}]
[null,"Acabados interiores",null,null,null,null,null,null,null,null,"Muros (ALBAÑILERIA)",null,"FRR",{"$f":"+M26*M27*M28*M29*M30*M31","v":0},null,null,null,null,"SUB TOTAL",null,null,null,{"$f":"+SUM(W9:W23)","v":0},null,null,9500,"Unitario Modelo A",null,11333.33,"Unitario Modelo B",null,15625,"Unitario Modelo C",null,15833.33,"Unitario Modelo D",null,16000,"Unitario Modelo E",null,16250,"Unitario Modelo F",null,16500,"Unitario Modelo G",null,14500,"Unitario Modelo H"]
[null,null,"NO APLICA","Económica","Media","Alta","Residencial","Plus","FRR",null,null,"PARAMETRO","SI",null,null,null,null,null,"UNITARIO",null,null,null,{"$f":"W24/X7","v":{"$error":"#DIV/0!"}}]
[null,"PARAMETRO",1,0.95,1,1.1000000000000001,1.1499999999999999,1.2,{"$f":"I27*I28*I29*I30*I31*I32*I33","v":0},null,"Tablaroca/Triplay",1.02,null,null,null,"Espacios","TT",null,"OBRAS COMPLEMENTARIAS",null,null,{"$f":"+M33","v":1},{"$f":"IF(V26=1,0,V26*$W$25)","v":0},{"$f":"+W26/$W$28","v":{"$error":"#DIV/0!"}}]
[null,"Pisos",null,null,null,null,null,null,{"$f":"+SUM(C27:H27)","v":0},null,"Ladrillo/block",1,null,null,null,"Cocina",null,null,"INSTALACIONES ESPECIALES",null,null,{"$f":"+M50","v":1},{"$f":"IF(V27=1,0,V27*W25)","v":0},{"$error":"#DIV/0!"}]
[null,"Azulejos",null,null,null,null,null,null,0,null,"Marcos rígidos de acero",1.03,null,null,null,"Sala",null,null,null,null,null,null,{"$f":"W24+W26+W27","v":0},{"$f":"+SUM(X9:X27)","v":{"$error":"#DIV/0!"}}]
[null,"Plafones",null,null,null,null,null,null,0,null,"MIXTO",1.04,null,null,null,"Comedor",null,null,null,null,null,null,{"$f":"+W28/X7","v":{"$error":"#DIV/0!"}}]
[null,"Recubrimientos en muros",null,null,null,null,null,null,0,null,"DESCONOCIDO",1,null,null,null,"Baños",null,null,null,null,null,"Factor IC",{"$f":"+C6","v":0}]
[null,"Muebles sanitarios (WC, Lavabo)",null,null,null,null,null,null,0,null,"OTRO",1.03,null,null,null,"Recamaras",null,null,null,null,null,"Unitario Final",{"$f":"W29*W30","v":{"$error":"#DIV/0!"}}]
[null,"Tinas/Jacuzzi",null,null,null,null,null,null,0,null,null,null,null,null,null,"Vestidores",null,null,null,null,null,"Presupuesto Final",{"$f":"W31*X7","v":{"$error":"#DIV/0!"}}]
[null,"Otro",null,null,null,null,null,null,0,null,"OBRAS  COMPLEMENTARIAS","PARAMETROS",{"$f":"M34*M35*M36*M37*M38*M39*M40*M41*M42*M43*M44*M45*M46*M47*M48","v":1},null,null,"Estacionamientos"]
[null,null,null,null,null,null,null,null,null,null,"TERRAZA",1.03,1,null,null,"CuartoServicio"]
[null,"ACABADOS EXTERIORES","NO APLICA","Económica","Media","Alta","Residencial","Plus","FRR",null,"ROOF GARDEN",1.05,1,null,null,"AccesoInd"]
[null,null,1,1,1,1,1,1,1,null,"PALAPAS",1.02,1]
[null,null,null,null,null,null,null,null,null,null,"CUBIERTAS (PERGOLADOS, POLICARBONATO, DOMOS)",1.01,1]
[null,"Instalaciones","NO APLICA","Económica","Media","Alta","Residencial","Plus","FRR",null,"BODEGA",1.01,1]
[null,"Instalacion Electricas",null,null,null,null,null,null,1,null,"BARDAS PERIMETRALES",1.01,1]
[null,"Instalacion Sanitarias",null,null,null,null,null,null,1,null,"AREAS DEPORTIVAS",1.05,1]
[null,"Instalacion Hidraulicas",null,null,null,null,null,null,1,null,"AREAS ADICIONALES",1.02,1]
[null,"instalacion GAS",null,null,null,null,null,null,1,null,"SALA DE UM",1.02,1]
[null,null,null,null,null,null,null,null,null,null,"SALA DE TV",1.02,1]
[null,"ACCESOS","NO APLICA","Económica","Media","Alta","Residencial","Plus","FRR",null,"GIMNASIO",1.02,1]
[null,null,1,1,1,1,1,1,1,null,"ESTUDIO",1.01,1]
[null,null,null,null,null,null,null,null,null,null,"ALCOBA",1.01,1]
[null,"MOBILIARIO FIJO","NO APLICA","Económica","Media","Alta","Residencial","Plus","FRR",null,"ALBERCA",1.06,1]
[null,null,1,1,1,1,1,1,1,null,"ELEVADORES",1.05,1]
[]
[null,null,null,null,null,null,null,null,null,null,"Instalaciones Especiales","PARAMETROS",{"$f":"M51*M52*M53*M54*M55*M56*M57*M58*M59*M60","v":1}]
[null,null,null,null,null,null,null,null,null,null,"AIRE ACONDICIONADO",1.02,1]
[null,"Comentarios cliente:",null,null,null,null,null,null,null,null,"SISTEMAS INTELIGENTES",1.04,1]
[null,null,null,null,null,null,null,null,null,null,"BIODIGESTORES",1.02,1]
[null,null,null,null,null,null,null,null,null,null,"CALEFACCION",1.02,1]
[null,null,null,null,null,null,null,null,null,null,"CIRCUITO CERRADO DE CCTV",1.03,1]
[null,null,null,null,null,null,null,null,null,null,"HIDRONEUMATICO",1.02,1]
[null,null,null,null,null,null,null,null,null,null,"SISTEMAS ECOLOGICOS",1.03,1]
[null,null,null,null,null,null,null,null,null,null,"PANELES SOLARES",1.03,1]
[null,null,null,null,null,null,null,null,null,null,"SISTEMA  DE CAPTACION PLUVIAL",1.02,1]
[null,null,null,null,null,null,null,null,null,null,"OTROS",1.02,1]
[]
[null,"Partida","Calidad"]
[null,"Puertas"]
[null,"Clósets"]
[null,"Cocina integral"]
[null,"Otro"]
[]
[null,"Cristales"]
[null,"Cancelería"]
[null,"Portones/rejas"]
[null,"Protecciones"]
[null,"Barandales"]
[null,"Otro"]
[]
[null,"Pisos"]
[null,"Azulejos"]
[null,"Plafones"]
[null,"Recubrimientos en muros"]
[null,"Muebles sanitarios (WC, Lavabo)"]
[null,"Tinas/Jacuzzi"]
[null,"Otro"]
[]
[null,"Acabados exteriores"]
[]
[null,"Instalacion Electricas"]
[null,"Instalacion Sanitarias"]
[null,"Instalacion Hidraulicas"]
[null,"instalacion GAS"]
[]
[null,"Cimentación"]
[null,"Losas de Entrepiso (Estructura de Concreto)"]
[null,"Muros (Albañilería)"]
[]
[null,"Otro Cimentación"]
[null,"Otro Losas de Entrepiso (Estructura de Concreto)"]
[null,"Otro Muros (Albañilería)"]

{"sheet":"Edos_Mpios","index":1,"n_rows":2463,"n_cols":8,"rows_kept":2463,"cut":false,"hidden":true,"merged":[]}
["Estado","Municipio","FIC",null,null,null,null,"Aguascalientes"]
["Aguascalientes","Aguascalientes",0.96399999999999997,null,null,null,null,"Baja California"]
["Aguascalientes","Asientos",1,null,null,null,null,"Baja California Sur"]
["Aguascalientes","Calvillo",1,null,null,null,null,"Campeche"]
["Aguascalientes","Cosio",1,null,null,null,null,"Cdmx"]
["Aguascalientes","El Llano",1,null,null,null,null,"Chiapas"]
["Aguascalientes","Jesus Maria",1,null,null,null,null,"Chihuahua"]
["Aguascalientes","Pabellon De Arteaga",1,null,null,null,null,"Coahuila De Zaragoza"]
["Aguascalientes","Rincon De Romos",1,null,null,null,null,"Colima"]
["Aguascalientes","San Francisco De Los Romo",1,null,null,null,null,"Durango"]
["Aguascalientes","San Jose De Gracia",1,null,null,null,null,"Guanajuato"]
["Aguascalientes","Tepezala",1,null,null,null,null,"Guerrero"]
["Baja California","Ensenada",1.1379999999999999,null,null,null,null,"Hidalgo"]
["Baja California","Mexicali",1.135,null,null,null,null,"Jalisco"]
["Baja California","Playas De Rosarito",1,null,null,null,null,"Mexico"]
["Baja California","Tecate",1,null,null,null,null,"Michoacan De Ocampo"]
["Baja California","Tijuana",1.175,null,null,null,null,"Morelos"]
["Baja California Sur","Comondu",1,null,null,null,null,"Nayarit"]
["Baja California Sur","La Paz",1,null,null,null,null,"Nuevo Leon"]
["Baja California Sur","Loreto",1,null,null,null,null,"Oaxaca"]
["Baja California Sur","Los Cabos",1,null,null,null,null,"Puebla"]
["Baja California Sur","Mulege",1,null,null,null,null,"Queretaro"]
["Campeche","Calakmul",1,null,null,null,null,"Quintana Roo"]
["Campeche","Calkini",1,null,null,null,null,"San Luis Potosi"]
["Campeche","Campeche",0.98699999999999999,null,null,null,null,"Sinaloa"]
["Campeche","Candelaria",1,null,null,null,null,"Sonora"]
["Campeche","Carmen",1,null,null,null,null,"Tabasco"]
["Campeche","Champoton",1,null,null,null,null,"Tamaulipas"]
["Campeche","Escarcega",0.94,null,null,null,null,"Tlaxcala"]
["Campeche","Hecelchakan",1,null,null,null,null,"Veracruz De Ignacio De La Llave"]
["Campeche","Hopelchen",1,null,null,null,null,"Yucatan"]
["Campeche","Palizada",1,null,null,null,null,"Zacatecas"]
["Campeche","Tenabo",1]
["Cdmx","Alvaro Obregon",1]
["Cdmx","Azcapotzalco",1]
["Cdmx","Benito Juarez",1]
["Cdmx","Coyoacan",1]
["Cdmx","Cuajimalpa De Morelos",1]
["Cdmx","Cuauhtemoc",1]
["Cdmx","Gustavo A. Madero",1]
["Cdmx","Iztacalco",1]
["Cdmx","Iztapalapa",1]
["Cdmx","La Magdalena Contreras",1]
["Cdmx","Miguel Hidalgo",1]
["Cdmx","Milpa Alta",1]
["Cdmx","Tlahuac",1]
["Cdmx","Tlalpan",1]
["Cdmx","Venustiano Carranza",1]
["Cdmx","Xochimilco",1]
["Chiapas","Acacoyagua",1]
["Chiapas","Acala",1]
["Chiapas","Acapetahua",1]
["Chiapas","Aldama",1]
["Chiapas","Altamirano",1]
["Chiapas","Amatan",1]
["Chiapas","Amatenango De La Frontera",1]
["Chiapas","Amatenango Del Valle",1]
["Chiapas","Angel Albino Corzo",1]
["Chiapas","Arriaga",0.873]
["Chiapas","Bejucal De Ocampo",1]
["Chiapas","Bella Vista",1]
["Chiapas","Benemerito De Las Americas",1]
["Chiapas","Berriozabal",1]
["Chiapas","Bochil",1]
["Chiapas","Cacahoatan",1]
["Chiapas","Catazaja",1]
["Chiapas","Chalchihuitan",1]
["Chiapas","Chamula",1]
["Chiapas","Chanal",1]
["Chiapas","Chapultenango",1]
["Chiapas","Chenalho",1]
["Chiapas","Chiapa De Corzo",1]
["Chiapas","Chiapilla",1]
["Chiapas","Chicoasen",1]
["Chiapas","Chicomuselo",1]
["Chiapas","Chilon",1]
["Chiapas","Cintalapa",1]
["Chiapas","Coapilla",1]
["Chiapas","Comitan De Dominguez",0.89]
["Chiapas","Copainala",1]
["Chiapas","El Bosque",1]
["Chiapas","El Porvenir",1]
["Chiapas","Escuintla",1]
["Chiapas","Francisco Leon",1]
["Chiapas","Frontera Comalapa",1]
["Chiapas","Frontera Hidalgo",1]
["Chiapas","Huehuetan",1]
["Chiapas","Huitiupan",1]
["Chiapas","Huixtan",1]
["Chiapas","Huixtla",1]
["Chiapas","Ixhuatan",1]
["Chiapas","Ixtacomitan",1]
["Chiapas","Ixtapa",1]
["Chiapas","Ixtapangajoya",1]
["Chiapas","Jiquipilas",1]
["Chiapas","Jitotol",1]
["Chiapas","Juarez",1]
["Chiapas","La Concordia",1]
["Chiapas","La Grandeza",1]
["Chiapas","La Independencia",1]
["Chiapas","La Libertad",1]
["Chiapas","La Trinitaria",1]
["Chiapas","Larrainzar",1]
["Chiapas","Las Margaritas",1]
["Chiapas","Las Rosas",1]
["Chiapas","Mapastepec",1]
["Chiapas","Maravilla Tenejapa",1]
["Chiapas","Marques De Comillas",1]
["Chiapas","Mazapa De Madero",1]
["Chiapas","Mazatan",1.056]
["Chiapas","Metapa",1]
["Chiapas","Mitontic",1]
["Chiapas","Montecristo De Guerrero",1]
["Chiapas","Motozintla",1]
["Chiapas","Nicolas Ruiz",1]
["Chiapas","Ocosingo",1]
["Chiapas","Ocotepec",1]
["Chiapas","Ocozocoautla De Espinosa",1]
["Chiapas","Ostuacan",1]
["Chiapas","Osumacinta",1]
["Chiapas","Oxchuc",1]
["Chiapas","Palenque",0.91]
["Chiapas","Pantelho",1]
["Chiapas","Pantepec",1]
["Chiapas","Pichucalco",1]
["Chiapas","Pijijiapan",1]
["Chiapas","Pueblo Nuevo Solistahuacan",1]
["Chiapas","Rayon",1]
["Chiapas","Reforma",1]
["Chiapas","Sabanilla",1]
["Chiapas","Salto De Agua",1]
["Chiapas","San Andres Duraznal",1]
["Chiapas","San Cristobal De Las Casas",0.89600000000000002]
["Chiapas","San Fernando",1]
["Chiapas","San Juan Cancuc",1]
["Chiapas","San Lucas",1]
["Chiapas","Santiago El Pinar",1]
["Chiapas","Siltepec",1]
["Chiapas","Simojovel",1]
["Chiapas","Sitala",1]
["Chiapas","Socoltenango",1]
["Chiapas","Solosuchiapa",1]
["Chiapas","Soyalo",1]
["Chiapas","Suchiapa",1]
["Chiapas","Suchiate",1]
["Chiapas","Sunuapa",1]
["Chiapas","Tapachula",1]
["Chiapas","Tapalapa",1]
["Chiapas","Tapilula",1]
["Chiapas","Tecpatan",1]
["Chiapas","Tenejapa",1]
["Chiapas","Teopisca",1]
["Chiapas","Tila",1]
["Chiapas","Tonala",1]
["Chiapas","Totolapa",1]
["Chiapas","Tumbala",1]
["Chiapas","Tuxtla Chico",1]
["Chiapas","Tuxtla Gutierrez",0.92600000000000005]
["Chiapas","Tuzantan",1]
["Chiapas","Tzimol",1]
["Chiapas","Union Juarez",1]
["Chiapas","Venustiano Carranza",1]
["Chiapas","Villa Comaltitlan",1]
["Chiapas","Villa Corzo",1]
["Chiapas","Villaflores",1]
["Chiapas","Yajalon",1]
["Chiapas","Zinacantan",1]
["Chihuahua","Ahumada",1]
["Chihuahua","Aldama",1]
["Chihuahua","Allende",1]
["Chihuahua","Aquiles Serdan",1]
["Chihuahua","Ascension",1]
["Chihuahua","Bachiniva",1]
["Chihuahua","Balleza",1]
["Chihuahua","Batopilas",1]
["Chihuahua","Bocoyna",1]
["Chihuahua","Buenaventura",1]
["Chihuahua","Camargo",1]
["Chihuahua","Carichi",1]
["Chihuahua","Casas Grandes",1]
["Chihuahua","Chihuahua",0.99199999999999999]
["Chihuahua","Chinipas",1]
["Chihuahua","Coronado",1]
["Chihuahua","Coyame Del Sotol",1]
["Chihuahua","Cuauhtemoc",1]
["Chihuahua","Cusihuiriachi",1]
["Chihuahua","Delicias",0.73699999999999999]
["Chihuahua","Dr. Belisario Dominguez",1]
["Chihuahua","El Tule",1]
["Chihuahua","Galeana",1]
["Chihuahua","Gomez Farias",1]
["Chihuahua","Gran Morelos",1]
["Chihuahua","Guachochi",1]
["Chihuahua","Guadalupe",1]
["Chihuahua","Guadalupe Y Calvo",1]
["Chihuahua","Guazapares",1]
["Chihuahua","Guerrero",1]
["Chihuahua","Hidalgo Del Parral",1]
["Chihuahua","Huejotitan",1]
["Chihuahua","Ignacio Zaragoza",1]
["Chihuahua","Janos",1]
["Chihuahua","Jimenez",1]
["Chihuahua","Juarez",1]
["Chihuahua","Julimes",1]
["Chihuahua","La Cruz",1]
["Chihuahua","Lopez",1]
["Chihuahua","Madera",1]
["Chihuahua","Maguarichi",1]
["Chihuahua","Manuel Benavides",1]
["Chihuahua","Matachi",1]
["Chihuahua","Matamoros",1]
["Chihuahua","Meoqui",1]
["Chihuahua","Morelos",1]
["Chihuahua","Moris",1]
["Chihuahua","Namiquipa",1]
["Chihuahua","Nonoava",1]
["Chihuahua","Nuevo Casas Grandes",1]
["Chihuahua","Ocampo",1]
["Chihuahua","Ojinaga",1]
["Chihuahua","Praxedis G. Guerrero",1]
["Chihuahua","Riva Palacio",1]
["Chihuahua","Rosales",1]
["Chihuahua","Rosario",1]
["Chihuahua","San Francisco De Borja",1]
["Chihuahua","San Francisco De Conchos",1]
["Chihuahua","San Francisco Del Oro",1]
["Chihuahua","Santa Barbara",1]
["Chihuahua","Santa Isabel",1]
["Chihuahua","Satevo",1]
["Chihuahua","Saucillo",1]
["Chihuahua","Temosachic",1]
["Chihuahua","Urique",1]
["Chihuahua","Uruachi",1]
["Chihuahua","Valle De Zaragoza",1]
["Coahuila De Zaragoza","Abasolo",1]
["Coahuila De Zaragoza","Acuña",1]
["Coahuila De Zaragoza","Allende",1]
["Coahuila De Zaragoza","Arteaga",1]
["Coahuila De Zaragoza","Candela",1]
["Coahuila De Zaragoza","Castaños",1]
["Coahuila De Zaragoza","Cuatro Cienegas",1]
["Coahuila De Zaragoza","Escobedo",1]
["Coahuila De Zaragoza","Francisco I. Madero",1]
["Coahuila De Zaragoza","Frontera",1]
["Coahuila De Zaragoza","General Cepeda",1]
["Coahuila De Zaragoza","Guerrero",1]
["Coahuila De Zaragoza","Hidalgo",1]
["Coahuila De Zaragoza","Jimenez",1]
["Coahuila De Zaragoza","Juarez",1]
["Coahuila De Zaragoza","Lamadrid",1]
["Coahuila De Zaragoza","Matamoros",1]
["Coahuila De Zaragoza","Monclova",0.92400000000000004]
["Coahuila De Zaragoza","Morelos",1]
["Coahuila De Zaragoza","Muzquiz",1.0169999999999999]
["Coahuila De Zaragoza","Nadadores",1]
["Coahuila De Zaragoza","Nava",1]
["Coahuila De Zaragoza","Ocampo",1]
["Coahuila De Zaragoza","Parras",1]
["Coahuila De Zaragoza","Piedras Negras",1.012]
["Coahuila De Zaragoza","Progreso",1]
["Coahuila De Zaragoza","Ramos Arizpe",1]
["Coahuila De Zaragoza","Sabinas",0.89600000000000002]
["Coahuila De Zaragoza","Sacramento",1]
["Coahuila De Zaragoza","Saltillo",0.91600000000000004]
["Coahuila De Zaragoza","San Buenaventura",1]
["Coahuila De Zaragoza","San Juan De Sabinas",1]
["Coahuila De Zaragoza","San Pedro",1]
["Coahuila De Zaragoza","Sierra Mojada",1]
["Coahuila De Zaragoza","Torreon",0.90200000000000002]
["Coahuila De Zaragoza","Viesca",1]
["Coahuila De Zaragoza","Villa Union",1]
["Coahuila De Zaragoza","Zaragoza",1]
["Colima","Armeria",1]
["Colima","Colima",0.99399999999999999]
["Colima","Comala",1]
["Colima","Coquimatlan",1]
["Colima","Cuauhtemoc",1]
["Colima","Ixtlahuacan",1]
["Colima","Manzanillo",0.89800000000000002]
["Colima","Minatitlan",1]
["Colima","Tecoman",1]
["Colima","Villa De Alvarez",1]
["Durango","Canatlan",1]
["Durango","Canelas",1]
["Durango","Coneto De Comonfort",1]
["Durango","Cuencame",1]
["Durango","Durango",0.94]
["Durango","El Oro",1]
["Durango","General Simon Bolivar",1]
["Durango","Gomez Palacio",1]
["Durango","Guadalupe Victoria",1]
["Durango","Guanacevi",1]
["Durango","Hidalgo",1]
["Durango","Inde",1]
["Durango","Lerdo",1]
["Durango","Mapimi",1]
["Durango","Mezquital",1]
["Durango","Nazas",1]
["Durango","Nombre De Dios",1]
["Durango","Nuevo Ideal",1]
["Durango","Ocampo",1]
["Durango","Otaez",1]
["Durango","Panuco De Coronado",1]
["Durango","Peñon Blanco",1]
["Durango","Poanas",1]
["Durango","Pueblo Nuevo",1]
["Durango","Rodeo",1]
["Durango","San Bernardo",1]
["Durango","San Dimas",1]
["Durango","San Juan De Guadalupe",1]
["Durango","San Juan Del Rio",1]
["Durango","San Luis Del Cordero",1]
["Durango","San Pedro Del Gallo",1]
["Durango","Santa Clara",1]
["Durango","Santiago Papasquiaro",1]
["Durango","Suchil",1]
["Durango","Tamazula",1]
["Durango","Tepehuanes",1]
["Durango","Tlahualilo",1]
["Durango","Topia",1]
["Durango","Vicente Guerrero",1]
["Guanajuato","Abasolo",1]
["Guanajuato","Acambaro",1]
["Guanajuato","Apaseo El Alto",1]
["Guanajuato","Apaseo El Grande",1]
["Guanajuato","Atarjea",1]
["Guanajuato","Celaya",0.93600000000000005]
["Guanajuato","Comonfort",1]
["Guanajuato","Coroneo",1]
["Guanajuato","Cortazar",1]
["Guanajuato","Cueramaro",1]
["Guanajuato","Doctor Mora",1]
["Guanajuato","Dolores Hidalgo Cuna De La Independencia Nacional",1]
["Guanajuato","Guanajuato",1]
["Guanajuato","Huanimaro",1]
["Guanajuato","Irapuato",0.88500000000000001]
["Guanajuato","Jaral Del Progreso",1]
["Guanajuato","Jerecuaro",1]
["Guanajuato","Leon",1.0449999999999999]
["Guanajuato","Manuel Doblado",1]
["Guanajuato","Moroleon",0.96799999999999997]
["Guanajuato","Ocampo",1]
["Guanajuato","Penjamo",1]
["Guanajuato","Pueblo Nuevo",1]
["Guanajuato","Purisima Del Rincon",1]
["Guanajuato","Romita",1]
["Guanajuato","Salamanca",0.88800000000000001]
["Guanajuato","Salvatierra",1]
["Guanajuato","San Diego De La Union",1]
["Guanajuato","San Felipe",1]
["Guanajuato","San Francisco Del Rincon",1]
["Guanajuato","San Jose Iturbide",1]
["Guanajuato","San Luis De La Paz",1]
["Guanajuato","San Miguel De Allende",1]
["Guanajuato","Santa Catarina",1]
["Guanajuato","Santa Cruz De Juventino Rosas",1]
["Guanajuato","Santiago Maravatio",1]
["Guanajuato","Silao",1]
["Guanajuato","Tarandacuao",1]
["Guanajuato","Tarimoro",1]
["Guanajuato","Tierra Blanca",1]
["Guanajuato","Uriangato",1]
["Guanajuato","Valle De Santiago",1]
["Guanajuato","Victoria",1]
["Guanajuato","Villagran",1]
["Guanajuato","Xichu",1]
["Guanajuato","Yuriria",1]
["Guerrero","Acapulco De Juarez",1]
["Guerrero","Acatepec",1]
["Guerrero","Ahuacuotzingo",1]
["Guerrero","Ajuchitlan Del Progreso",1]
["Guerrero","Alcozauca De Guerrero",1]
["Guerrero","Alpoyeca",1]
["Guerrero","Apaxtla",1]
["Guerrero","Arcelia",1]
["Guerrero","Atenango Del Rio",1]
["Guerrero","Atlamajalcingo Del Monte",1]
["Guerrero","Atlixtac",1]
["Guerrero","Atoyac De Alvarez",0.93300000000000005]
["Guerrero","Ayutla De Los Libres",1]
["Guerrero","Azoyu",1]
["Guerrero","Benito Juarez",1]
["Guerrero","Buenavista De Cuellar",1]
["Guerrero","Chilapa De Alvarez",1]
["Guerrero","Chilpancingo De Los Bravo",1]
["Guerrero","Ciudad Altamirano",1]
["Guerrero","Coahuayutla De Jose Maria Izazaga",1]
["Guerrero","Cochoapa El Grande",1]
["Guerrero","Cocula",1]
["Guerrero","Copala",1]
["Guerrero","Copalillo",1]
["Guerrero","Copanatoyac",1]
["Guerrero","Coyuca De Benitez",1]
["Guerrero","Coyuca De Catalan",1]
["Guerrero","Cuajinicuilapa",1]
["Guerrero","Cualac",1]
["Guerrero","Cuautepec",1]
["Guerrero","Cuetzala Del Progreso",1]
["Guerrero","Cutzamala De Pinzon",1]
["Guerrero","Eduardo Neri",1]
["Guerrero","Florencio Villarreal",1]
["Guerrero","General Canuto A. Neri",1]
["Guerrero","General Heliodoro Castillo",1]
["Guerrero","Huamuxtitlan",1]
["Guerrero","Huitzuco De Los Figueroa",1]
["Guerrero","Iguala De La Independencia",1]
["Guerrero","Igualapa",1]
["Guerrero","Iliatenco",1]
["Guerrero","Ixcateopan De Cuauhtemoc",1]
["Guerrero","Ixtapa",1]
["Guerrero","Jose Joaquin De Herrera",1]
["Guerrero","Juan R. Escudero",1]
["Guerrero","Juchitan",1]
["Guerrero","La Union De Isidoro Montes De Oca",1]
["Guerrero","Leonardo Bravo",1]
["Guerrero","Malinaltepec",1]
["Guerrero","Marquelia",1]
["Guerrero","Martir De Cuilapan",1]
["Guerrero","Metlatonoc",1]
["Guerrero","Mochitlan",1]
["Guerrero","Olinala",1]
["Guerrero","Ometepec",0.92400000000000004]
["Guerrero","Pedro Ascencio Alquisiras",1]
["Guerrero","Petatlan",1]
["Guerrero","Pilcaya",1]
["Guerrero","Pungarabato",1]
["Guerrero","Quechultenango",1]
["Guerrero","San Luis Acatlan",1]
["Guerrero","San Marcos",1]
["Guerrero","San Miguel Totolapan",1]
["Guerrero","Taxco De Alarcon",1]
["Guerrero","Tecoanapa",1]
["Guerrero","Tecpan De Galeana",1]
["Guerrero","Teloloapan",1]
["Guerrero","Tepecoacuilco De Trujano",1]
["Guerrero","Tetipac",1]
["Guerrero","Tixtla De Guerrero",1]
["Guerrero","Tlacoachistlahuaca",1]
["Guerrero","Tlacoapa",1]
["Guerrero","Tlalchapa",1]
["Guerrero","Tlalixtaquilla De Maldonado",1]
["Guerrero","Tlapa De Comonfort",1]
["Guerrero","Tlapehuala",1]
["Guerrero","Xalpatlahuac",1]
["Guerrero","Xochihuehuetlan",1]
["Guerrero","Xochistlahuaca",1]
["Guerrero","Zapotitlan Tablas",1]
["Guerrero","Zihuatanejo De Azueta",1]
["Guerrero","Zirandaro",1]
["Guerrero","Zitlala",1]
["Hidalgo","Acatlan",1]
["Hidalgo","Acaxochitlan",1]
["Hidalgo","Actopan",1]
["Hidalgo","Agua Blanca De Iturbide",1]
["Hidalgo","Ajacuba",1]
["Hidalgo","Alfajayucan",1]
["Hidalgo","Almoloya",1]
["Hidalgo","Apan",1]
["Hidalgo","Atitalaquia",1]
["Hidalgo","Atlapexco",1]
["Hidalgo","Atotonilco De Tula",1]
["Hidalgo","Atotonilco El Grande",1]
["Hidalgo","Calnali",1]
["Hidalgo","Cardonal",1]
["Hidalgo","Chapantongo",1]
["Hidalgo","Chapulhuacan",1]
["Hidalgo","Chilcuautla",1]
["Hidalgo","Cuautepec De Hinojosa",1]
["Hidalgo","El Arenal",1]
["Hidalgo","Eloxochitlan",1]
["Hidalgo","Emiliano Zapata",1]
["Hidalgo","Epazoyucan",1]
["Hidalgo","Francisco I. Madero",1]
["Hidalgo","Huasca De Ocampo",1]
["Hidalgo","Huautla",1]
["Hidalgo","Huazalingo",1]
["Hidalgo","Huehuetla",1]
["Hidalgo","Huejutla De Reyes",1]
["Hidalgo","Huichapan",1]
["Hidalgo","Ixmiquilpan",1]
["Hidalgo","Jacala De Ledezma",1]
["Hidalgo","Jaltocan",1]
["Hidalgo","Juarez Hidalgo",1]
["Hidalgo","La Mision",1]
["Hidalgo","Lolotla",1]
["Hidalgo","Metepec",1]
["Hidalgo","Metztitlan",1]
["Hidalgo","Mineral De La Reforma",1]
["Hidalgo","Mineral Del Chico",1]
["Hidalgo","Mineral Del Monte",1]
["Hidalgo","Mixquiahuala De Juarez",1]
["Hidalgo","Molango De Escamilla",1]
["Hidalgo","Nicolas Flores",1]
["Hidalgo","Nopala De Villagran",1]
["Hidalgo","Omitlan De Juarez",1]
["Hidalgo","Pachuca De Soto",1]
["Hidalgo","Pacula",1]
["Hidalgo","Pisaflores",1]
["Hidalgo","Progreso De Obregon",1]
["Hidalgo","San Agustin Metzquititlan",1]
["Hidalgo","San Agustin Tlaxiaca",1]
["Hidalgo","San Bartolo Tutotepec",1]
["Hidalgo","San Felipe Orizatlan",1]
["Hidalgo","San Salvador",1]
["Hidalgo","Santiago De Anaya",1]
["Hidalgo","Santiago Tulantepec De Lugo Guerrero",1]
["Hidalgo","Singuilucan",1]
["Hidalgo","Tasquillo",1]
["Hidalgo","Tecozautla",1]
["Hidalgo","Tenango De Doria",1]
["Hidalgo","Tepeapulco",1]
["Hidalgo","Tepehuacan De Guerrero",1]
["Hidalgo","Tepeji Del Rio De Ocampo",1]
["Hidalgo","Tepetitlan",1]
["Hidalgo","Tetepango",1]
["Hidalgo","Tezontepec De Aldama",1]
["Hidalgo","Tianguistengo",1]
["Hidalgo","Tizayuca",1]
["Hidalgo","Tlahuelilpan",1]
["Hidalgo","Tlahuiltepa",1]
["Hidalgo","Tlanalapa",1]
["Hidalgo","Tlanchinol",1]
["Hidalgo","Tlaxcoapan",1]
["Hidalgo","Tolcayuca",1]
["Hidalgo","Tula De Allende",1]
["Hidalgo","Tulancingo De Bravo",1]
["Hidalgo","Villa De Tezontepec",1]
["Hidalgo","Xochiatipan",1]
["Hidalgo","Xochicoatlan",1]
["Hidalgo","Yahualica",1]
["Hidalgo","Zacualtipan De Angeles",1]
["Hidalgo","Zapotlan De Juarez",1]
["Hidalgo","Zempoala",1]
["Hidalgo","Zimapan",1]
["Jalisco","Acatic",1]
["Jalisco","Acatlan De Juarez",1]
["Jalisco","Ahualulco De Mercado",1]
["Jalisco","Amacueca",1]
["Jalisco","Amatitan",1]
["Jalisco","Ameca",1]
["Jalisco","Arandas",1]
["Jalisco","Atemajac De Brizuela",1]
["Jalisco","Atengo",1]
["Jalisco","Atenguillo",1]
["Jalisco","Atotonilco El Alto",1]
["Jalisco","Atoyac",1]
["Jalisco","Autlan De Navarro",1]
["Jalisco","Ayotlan",1]
["Jalisco","Ayutla",1]
["Jalisco","Bolaños",1]
["Jalisco","Cabo Corrientes",1]
["Jalisco","Cañadas De Obregon",1]
["Jalisco","Casimiro Castillo",1]
["Jalisco","Chapala",1]
["Jalisco","Chimaltitan",1]
["Jalisco","Chiquilistlan",1]
["Jalisco","Cihuatlan",1]
["Jalisco","Cocula",1]
["Jalisco","Colotlan",1]
["Jalisco","Concepcion De Buenos Aires",1]
["Jalisco","Cuautitlan De Garcia Barragan",1]
["Jalisco","Cuautla",1]
["Jalisco","Cuquio",1]
["Jalisco","Degollado",1]
["Jalisco","Ejutla",1]
["Jalisco","El Arenal",1]
["Jalisco","El Grullo",1]
["Jalisco","El Limon",1]
["Jalisco","El Salto",1]
["Jalisco","Encarnacion De Diaz",1]
["Jalisco","Etzatlan",1]
["Jalisco","Gomez Farias",1]
["Jalisco","Guachinango",1]
["Jalisco","Guadalajara",0.98399999999999999]
["Jalisco","Hostotipaquillo",1]
["Jalisco","Huejucar",1]
["Jalisco","Huejuquilla El Alto",1]
["Jalisco","Ixtlahuacan De Los Membrillos",1]
["Jalisco","Ixtlahuacan Del Rio",1]
["Jalisco","Jalostotitlan",1]
["Jalisco","Jamay",1]
["Jalisco","Jesus Maria",1]
["Jalisco","Jilotlan De Los Dolores",1]
["Jalisco","Jocotepec",1]
["Jalisco","Juanacatlan",1]
["Jalisco","Juchitlan",1]
["Jalisco","La Barca",1]
["Jalisco","La Huerta",1]
["Jalisco","La Manzanilla De La Paz",1]
["Jalisco","Lagos De Moreno",0.94]
["Jalisco","Magdalena",1]
["Jalisco","Mascota",1]
["Jalisco","Mazamitla",1]
["Jalisco","Mexticacan",1]
["Jalisco","Mezquitic",1]
["Jalisco","Mixtlan",1]
["Jalisco","Ocotlan",0.93899999999999995]
["Jalisco","Ojuelos De Jalisco",1]
["Jalisco","Pihuamo",1]
["Jalisco","Poncitlan",1]
["Jalisco","Puerto Vallarta",1.0349999999999999]
["Jalisco","Quitupan",1]
["Jalisco","San Cristobal De La Barranca",1]
["Jalisco","San Diego De Alejandria",1]
["Jalisco","San Gabriel",1]
["Jalisco","San Ignacio Cerro Gordo",1]
["Jalisco","San Juan De Los Lagos",1]
["Jalisco","San Juanito De Escobedo",1]
["Jalisco","San Julian",1]
["Jalisco","San Marcos",1]
["Jalisco","San Martin De Bolaños",1]
["Jalisco","San Martin Hidalgo",1]
["Jalisco","San Miguel El Alto",1]
["Jalisco","San Pedro Tlaquepaque",1]
["Jalisco","San Sebastian Del Oeste",1]
["Jalisco","Santa Maria De Los Angeles",1]
["Jalisco","Santa Maria Del Oro",1]
["Jalisco","Sayula",1]
["Jalisco","Tala",1]
["Jalisco","Talpa De Allende",1]
["Jalisco","Tamazula De Gordiano",1]
["Jalisco","Tapalpa",1]
["Jalisco","Tecalitlan",1]
["Jalisco","Techaluta De Montenegro",1]
["Jalisco","Tecolotlan",1]
["Jalisco","Tenamaxtlan",1]
["Jalisco","Teocaltiche",1]
["Jalisco","Teocuitatlan De Corona",1]
["Jalisco","Tepatitlan De Morelos",1]
["Jalisco","Tequila",1]
["Jalisco","Teuchitlan",1]
["Jalisco","Tizapan El Alto",1]
["Jalisco","Tlajomulco De Zuñiga",1]
["Jalisco","Toliman",1]
["Jalisco","Tomatlan",1]
["Jalisco","Tonala",1]
["Jalisco","Tonaya",1]
["Jalisco","Tonila",1]
["Jalisco","Totatiche",1]
["Jalisco","Tototlan",1]
["Jalisco","Tuxcacuesco",1]
["Jalisco","Tuxcueca",1]
["Jalisco","Tuxpan",1]
["Jalisco","Union De San Antonio",1]
["Jalisco","Union De Tula",1]
["Jalisco","Valle De Guadalupe",1]
["Jalisco","Valle De Juarez",1]
["Jalisco","Villa Corona",1]
["Jalisco","Villa Guerrero",1]
["Jalisco","Villa Hidalgo",1]
["Jalisco","Villa Purificacion",1]
["Jalisco","Yahualica De Gonzalez Gallo",1]
["Jalisco","Zacoalco De Torres",1]
["Jalisco","Zapopan",1]
["Jalisco","Zapotiltic",1]
["Jalisco","Zapotitlan De Vadillo",1]
["Jalisco","Zapotlan Del Rey",1]
["Jalisco","Zapotlan El Grande",1]
["Jalisco","Zapotlanejo",1]
["Mexico","Acambay De Ruiz Castañeda",1]
["Mexico","Acolman",1]
["Mexico","Aculco",1]
["Mexico","Almoloya De Alquisiras",1]
["Mexico","Almoloya De Juarez",1]
["Mexico","Almoloya Del Rio",1]
["Mexico","Amanalco",1]
["Mexico","Amatepec",1]
["Mexico","Amecameca",1]
["Mexico","Apaxco",1]
["Mexico","Atenco",1]
["Mexico","Atizapan",1]
["Mexico","Atizapan De Zaragoza",1]
["Mexico","Atlacomulco",1]
["Mexico","Atlautla",1]
["Mexico","Axapusco",1]
["Mexico","Ayapango",1]
["Mexico","Calimaya",1]
["Mexico","Capulhuac",1]
["Mexico","Chalco",1]
["Mexico","Chapa De Mota",1]
["Mexico","Chapultepec",1]
["Mexico","Chiautla",1]
["Mexico","Chicoloapan",1]
["Mexico","Chiconcuac",1]
["Mexico","Chimalhuacan",1]
["Mexico","Coacalco De Berriozabal",1]
["Mexico","Coatepec Harinas",1]
["Mexico","Cocotitlan",1]
["Mexico","Coyotepec",1]
["Mexico","Cuautitlan",0.96899999999999997]
["Mexico","Cuautitlan Izcalli",1]
["Mexico","Donato Guerra",1]
["Mexico","Ecatepec De Morelos",1]
["Mexico","Ecatzingo",1]
["Mexico","El Oro",1]
["Mexico","Huehuetoca",1]
["Mexico","Hueypoxtla",1]
["Mexico","Huixquilucan",1]
["Mexico","Isidro Fabela",1]
["Mexico","Ixtapaluca",1]
["Mexico","Ixtapan De La Sal",1]
["Mexico","Ixtapan Del Oro",1]
["Mexico","Ixtlahuaca",1]
["Mexico","Jalatlaco",1]
["Mexico","Jaltenco",1]
["Mexico","Jilotepec",1]
["Mexico","Jilotzingo",1]
["Mexico","Jiquipilco",1]
["Mexico","Jocotitlan",1]
["Mexico","Joquicingo",1]
["Mexico","Juchitepec",1]
["Mexico","La Paz",1]
["Mexico","Lerma",0.877]
["Mexico","Luvianos",1]
["Mexico","Malinalco",1]
["Mexico","Melchor Ocampo",1]
["Mexico","Metepec",1]
["Mexico","Mexicaltzingo",1]
["Mexico","Morelos",1]
["Mexico","Naucalpan De Juarez",1]
["Mexico","Nextlalpan",1]
["Mexico","Nezahualcoyotl",1]
["Mexico","Nicolas Romero",1]
["Mexico","Nopaltepec",1]
["Mexico","Ocoyoacac",1]
["Mexico","Ocuilan",1]
["Mexico","Otumba",1]
["Mexico","Otzoloapan",1]
["Mexico","Otzolotepec",1]
["Mexico","Ozumba",1]
["Mexico","Papalotla",1]
["Mexico","Polotitlan",1]
["Mexico","Rayon",1]
["Mexico","San Antonio La Isla",1]
["Mexico","San Felipe Del Progreso",1]
["Mexico","San Jose Del Rincon",1]
["Mexico","San Martin De Las Piramides",1]
["Mexico","San Mateo Atenco",1]
["Mexico","San Simon De Guerrero",1]
["Mexico","Santo Tomas",1]
["Mexico","Soyaniquilpan De Juarez",1]
["Mexico","Sultepec",1]
["Mexico","Tecamac",1]
["Mexico","Tejupilco",1]
["Mexico","Temamatla",1]
["Mexico","Temascalapa",1]
["Mexico","Temascalcingo",1]
["Mexico","Temascaltepec",1]
["Mexico","Temoaya",1]
["Mexico","Tenancingo",1]
["Mexico","Tenango Del Aire",1]
["Mexico","Tenango Del Valle",1]
["Mexico","Teoloyucan",1]
["Mexico","Teotihuacan",1]
["Mexico","Tepetlaoxtoc",1]
["Mexico","Tepetlixpa",1]
["Mexico","Tepotzotlan",1]
["Mexico","Tequixquiac",1]
["Mexico","Texcaltitlan",1]
["Mexico","Texcalyacac",1]
["Mexico","Texcoco",1]
["Mexico","Tezoyuca",1]
["Mexico","Tianguistenco",1]
["Mexico","Timilpan",1]
["Mexico","Tlalmanalco",1]
["Mexico","Tlalnepantla De Baz",1]
["Mexico","Tlatlaya",1]
["Mexico","Toluca",0.96]
["Mexico","Tonanitla",1]
["Mexico","Tonatico",1]
["Mexico","Tultepec",1]
["Mexico","Tultitlan",1]
["Mexico","Valle De Bravo",1]
["Mexico","Valle De Chalco Solidaridad",1]
["Mexico","Villa De Allende",1]
["Mexico","Villa Del Carbon",1]
["Mexico","Villa Guerrero",1]
["Mexico","Villa Victoria",1]
["Mexico","Xonacatlan",1]
["Mexico","Zacazonapan",1]
["Mexico","Zacualpan",1]
["Mexico","Zinacantepec",1]
["Mexico","Zumpahuacan",1]
["Mexico","Zumpango",1]
["Michoacan De Ocampo","Acuitzio",1]
["Michoacan De Ocampo","Aguililla",1]
["Michoacan De Ocampo","Alvaro Obregon",1]
["Michoacan De Ocampo","Angamacutiro",1]
["Michoacan De Ocampo","Angangueo",1]
["Michoacan De Ocampo","Apatzingan",1]
["Michoacan De Ocampo","Aporo",1]
["Michoacan De Ocampo","Aquila",1]
["Michoacan De Ocampo","Ario",1]
["Michoacan De Ocampo","Arteaga",1]
["Michoacan De Ocampo","Briseñas",1]
["Michoacan De Ocampo","Buenavista",1]
["Michoacan De Ocampo","Caracuaro",1]
["Michoacan De Ocampo","Charapan",1]
["Michoacan De Ocampo","Charo",1]
["Michoacan De Ocampo","Chavinda",1]
["Michoacan De Ocampo","Cheran",1]
["Michoacan De Ocampo","Chilchota",1]
["Michoacan De Ocampo","Chinicuila",1]
["Michoacan De Ocampo","Chucandiro",1]
["Michoacan De Ocampo","Churintzio",1]
["Michoacan De Ocampo","Churumuco",1]
["Michoacan De Ocampo","Coahuayana",1]
["Michoacan De Ocampo","Coalcoman De Vazquez Pallares",1]
["Michoacan De Ocampo","Coeneo",1]
["Michoacan De Ocampo","Cojumatlan De Regules",1]
["Michoacan De Ocampo","Contepec",1]
["Michoacan De Ocampo","Copandaro",1]
["Michoacan De Ocampo","Cotija",1]
["Michoacan De Ocampo","Cuitzeo",1]
["Michoacan De Ocampo","Ecuandureo",1]
["Michoacan De Ocampo","Epitacio Huerta",1]
["Michoacan De Ocampo","Erongaricuaro",1]
["Michoacan De Ocampo","Gabriel Zamora",1]
["Michoacan De Ocampo","Hidalgo",1]
["Michoacan De Ocampo","Huandacareo",1]
["Michoacan De Ocampo","Huaniqueo",1]
["Michoacan De Ocampo","Huetamo",1]
["Michoacan De Ocampo","Huiramba",1]
["Michoacan De Ocampo","Indaparapeo",1]
["Michoacan De Ocampo","Irimbo",1]
["Michoacan De Ocampo","Ixtlan",1]
["Michoacan De Ocampo","Jacona",1]
["Michoacan De Ocampo","Jimenez",1]
["Michoacan De Ocampo","Jiquilpan",0.91600000000000004]
["Michoacan De Ocampo","Jose Sixto Verduzco",1]
["Michoacan De Ocampo","Juarez",1]
["Michoacan De Ocampo","Jungapeo",1]
["Michoacan De Ocampo","La Huacana",1]
["Michoacan De Ocampo","La Piedad",1]
["Michoacan De Ocampo","Lagunillas",1]
["Michoacan De Ocampo","Lazaro Cardenas",1]
["Michoacan De Ocampo","Los Reyes",1]
["Michoacan De Ocampo","Madero",1]
["Michoacan De Ocampo","Maravatio",1]
["Michoacan De Ocampo","Marcos Castellanos",1]
["Michoacan De Ocampo","Morelia",0.91300000000000003]
["Michoacan De Ocampo","Morelos",1]
["Michoacan De Ocampo","Mugica",1]
["Michoacan De Ocampo","Nahuatzen",1]
["Michoacan De Ocampo","Nocupetaro",1]
["Michoacan De Ocampo","Nuevo Parangaricutiro",1]
["Michoacan De Ocampo","Nuevo Urecho",1]
["Michoacan De Ocampo","Numaran",1]
["Michoacan De Ocampo","Ocampo",1]
["Michoacan De Ocampo","Pajacuaran",1]
["Michoacan De Ocampo","Panindicuaro",1]
["Michoacan De Ocampo","Paracho",1]
["Michoacan De Ocampo","Paracuaro",1]
["Michoacan De Ocampo","Patzcuaro",0.872]
["Michoacan De Ocampo","Penjamillo",1]
["Michoacan De Ocampo","Periban",1]
["Michoacan De Ocampo","Purepero",1]
["Michoacan De Ocampo","Puruandiro",1]
["Michoacan De Ocampo","Querendaro",1]
["Michoacan De Ocampo","Quiroga",1]
["Michoacan De Ocampo","Sahuayo",0.86599999999999999]
["Michoacan De Ocampo","Salvador Escalante",1]
["Michoacan De Ocampo","San Lucas",1]
["Michoacan De Ocampo","Santa Ana Maya",1]
["Michoacan De Ocampo","Senguio",1]
["Michoacan De Ocampo","Susupuato",1]
["Michoacan De Ocampo","Tacambaro",1]
["Michoacan De Ocampo","Tancitaro",1]
["Michoacan De Ocampo","Tangamandapio",1]
["Michoacan De Ocampo","Tangancicuaro",1]
["Michoacan De Ocampo","Tanhuato",1]
["Michoacan De Ocampo","Taretan",1]
["Michoacan De Ocampo","Tarimbaro",1]
["Michoacan De Ocampo","Tepalcatepec",1]
["Michoacan De Ocampo","Tingambato",1]
["Michoacan De Ocampo","Tinguindin",1]
["Michoacan De Ocampo","Tiquicheo De Nicolas Romero",1]
["Michoacan De Ocampo","Tlalpujahua",1]
["Michoacan De Ocampo","Tlazazalca",1]
["Michoacan De Ocampo","Tocumbo",1]
["Michoacan De Ocampo","Tumbiscatio",1]
["Michoacan De Ocampo","Turicato",1]
["Michoacan De Ocampo","Tuxpan",1]
["Michoacan De Ocampo","Tuzantla",1]
["Michoacan De Ocampo","Tzintzuntzan",1]
["Michoacan De Ocampo","Tzitzio",1]
["Michoacan De Ocampo","Uruapan",0.95699999999999996]
["Michoacan De Ocampo","Venustiano Carranza",1]
["Michoacan De Ocampo","Villamar",1]
["Michoacan De Ocampo","Vista Hermosa",1]
["Michoacan De Ocampo","Yurecuaro",1]
["Michoacan De Ocampo","Zacapu",1]
["Michoacan De Ocampo","Zamora",0.93600000000000005]
["Michoacan De Ocampo","Zinaparo",1]
["Michoacan De Ocampo","Zinapecuaro",1]
["Michoacan De Ocampo","Ziracuaretiro",1]
["Michoacan De Ocampo","Zitacuaro",1]
["Morelos","Amacuzac",1]
["Morelos","Atlatlahucan",1]
["Morelos","Axochiapan",1]
["Morelos","Ayala",1]
["Morelos","Coatlan Del Rio",1]
["Morelos","Cuautla",1]
["Morelos","Cuernavaca",0.99299999999999999]
["Morelos","Emiliano Zapata",1]
["Morelos","Huitzilac",1]
["Morelos","Jantetelco",1]
["Morelos","Jiutepec",0.96]
["Morelos","Jojutla",1]
["Morelos","Jonacatepec",1]
["Morelos","Mazatepec",1]
["Morelos","Miacatlan",1]
["Morelos","Ocuituco",1]
["Morelos","Puente De Ixtla",1]
["Morelos","Temixco",1]
["Morelos","Temoac",1]
["Morelos","Tepalcingo",1]
["Morelos","Tepoztlan",1]
["Morelos","Tetecala",1]
["Morelos","Tetela Del Volcan",1]
["Morelos","Tlalnepantla",1]
["Morelos","Tlaltizapan De Zapata",1]
["Morelos","Tlaquiltenango",1]
["Morelos","Tlayacapan",1]
["Morelos","Totolapan",1]
["Morelos","Xochitepec",1]
["Morelos","Yautepec",0.88700000000000001]
["Morelos","Yecapixtla",1]
["Morelos","Zacatepec",1]
["Morelos","Zacualpan",1]
["Nayarit","Acaponeta",1]
["Nayarit","Ahuacatlan",1]
["Nayarit","Amatlan De Cañas",1]
["Nayarit","Bahia De Banderas",1]
["Nayarit","Compostela",0.90400000000000003]
["Nayarit","Del Nayar",1]
["Nayarit","Huajicori",1]
["Nayarit","Ixtlan Del Rio",1]
["Nayarit","Jala",1]
["Nayarit","La Yesca",1]
["Nayarit","Rosamorada",1]
["Nayarit","Ruiz",1]
["Nayarit","San Blas",1]
["Nayarit","San Pedro Lagunillas",1]
["Nayarit","Santa Maria Del Oro",1]
["Nayarit","Santiago Ixcuintla",1]
["Nayarit","Tecuala",1]
["Nayarit","Tepic",1]
["Nayarit","Tuxpan",1]
["Nayarit","Xalisco",1]
["Nuevo Leon","Abasolo",1]
["Nuevo Leon","Agualeguas",1]
["Nuevo Leon","Allende",1]
["Nuevo Leon","Anahuac",1]
["Nuevo Leon","Apodaca",1]
["Nuevo Leon","Aramberri",1]
["Nuevo Leon","Bustamante",1]
["Nuevo Leon","Cadereyta Jimenez",1]
["Nuevo Leon","Cerralvo",1]
["Nuevo Leon","China",0.99399999999999999]
["Nuevo Leon","Cienega De Flores",1]
["Nuevo Leon","Doctor Arroyo",1]
["Nuevo Leon","Doctor Coss",1]
["Nuevo Leon","Doctor Gonzalez",1]
["Nuevo Leon","El Carmen",1]
["Nuevo Leon","Galeana",1]
["Nuevo Leon","Garcia",1]
["Nuevo Leon","General Bravo",1]
["Nuevo Leon","General Escobedo",1]
["Nuevo Leon","General Teran",1]
["Nuevo Leon","General Treviño",1]
["Nuevo Leon","General Zaragoza",1]
["Nuevo Leon","General Zuazua",1]
["Nuevo Leon","Guadalupe",1]
["Nuevo Leon","Hidalgo",1]
["Nuevo Leon","Higueras",1]
["Nuevo Leon","Hualahuises",1]
["Nuevo Leon","Iturbide",1]
["Nuevo Leon","Juarez",1]
["Nuevo Leon","Lampazos De Naranjo",1]
["Nuevo Leon","Linares",0.93799999999999994]
["Nuevo Leon","Los Aldamas",1]
["Nuevo Leon","Los Herreras",1]
["Nuevo Leon","Los Ramones",1]
["Nuevo Leon","Marin",1]
["Nuevo Leon","Melchor Ocampo",1]
["Nuevo Leon","Mier Y Noriega",1]
["Nuevo Leon","Mina",1]
["Nuevo Leon","Montemorelos",1]
["Nuevo Leon","Monterrey",0.95499999999999996]
["Nuevo Leon","Paras",1]
["Nuevo Leon","Pesqueria",1]
["Nuevo Leon","Rayones",1]
["Nuevo Leon","Sabinas Hidalgo",1]
["Nuevo Leon","Salinas Victoria",1]
["Nuevo Leon","San Nicolas De Los Garza",1]
["Nuevo Leon","San Pedro Garza Garcia",1]
["Nuevo Leon","Santa Catarina",1]
["Nuevo Leon","Santiago",1]
["Nuevo Leon","Vallecillo",1]
["Nuevo Leon","Villaldama",1]
["Oaxaca","Abejones",1]
["Oaxaca","Acatlan De Perez Figueroa",1]
["Oaxaca","Animas Trujano",1]
["Oaxaca","Asuncion Cacalotepec",1]
["Oaxaca","Asuncion Cuyotepeji",1]
["Oaxaca","Asuncion Ixtaltepec",1]
["Oaxaca","Asuncion Nochixtlan",1]
["Oaxaca","Asuncion Ocotlan",1]
["Oaxaca","Asuncion Tlacolulita",1]
["Oaxaca","Ayoquezco De Aldama",1]
["Oaxaca","Ayotzintepec",1]
["Oaxaca","Calihuala",1]
["Oaxaca","Candelaria Loxicha",1]
["Oaxaca","Capulalpam De Mendez",1]
["Oaxaca","Chahuites",1]
["Oaxaca","Chalcatongo De Hidalgo",1]
["Oaxaca","Chiquihuitlan De Benito Juarez",1]
["Oaxaca","Cienega De Zimatlan",1]
["Oaxaca","Ciudad Ixtepec",1]
["Oaxaca","Coatecas Altas",1]
["Oaxaca","Coicoyan De Las Flores",1]
["Oaxaca","Concepcion Buenavista",1]
["Oaxaca","Concepcion Papalo",1]
["Oaxaca","Constancia Del Rosario",1]
["Oaxaca","Cosolapa",1]
["Oaxaca","Cosoltepec",1]
["Oaxaca","Cuilapam De Guerrero",1]
["Oaxaca","Cuyamecalco Villa De Zaragoza",1]
["Oaxaca","El Barrio De La Soledad",1]
["Oaxaca","El Espinal",1]
["Oaxaca","Eloxochitlan De Flores Magon",1]
["Oaxaca","Fresnillo De Trujano",1]
["Oaxaca","Guadalupe De Ramirez",1]
["Oaxaca","Guadalupe Etla",1]
["Oaxaca","Guelatao De Juarez",1]
["Oaxaca","Guevea De Humboldt",1]
["Oaxaca","Heroica Ciudad De Ejutla De Crespo",1]
["Oaxaca","Heroica Ciudad De Huajuapan De Leon",1]
["Oaxaca","Heroica Ciudad De Juchitan De Zaragoza",1]
["Oaxaca","Heroica Ciudad De Tlaxiaco",1]
["Oaxaca","Heroica Villa Tezoatlan De Segura Y Luna, Cuna De La Independencia De Oaxaca",1]
["Oaxaca","Huautepec",1]
["Oaxaca","Huautla De Jimenez",1]
["Oaxaca","Ixpantepec Nieves",1]
["Oaxaca","Ixtlan De Juarez",1]
["Oaxaca","La Compañia",1]
["Oaxaca","La Pe",1]
["Oaxaca","La Reforma",1]
["Oaxaca","La Trinidad Vista Hermosa",1]
["Oaxaca","Loma Bonita",1]
["Oaxaca","Magdalena Apasco",1]
["Oaxaca","Magdalena Jaltepec",1]
["Oaxaca","Magdalena Mixtepec",1]
["Oaxaca","Magdalena Ocotlan",1]
["Oaxaca","Magdalena Peñasco",1]
["Oaxaca","Magdalena Teitipac",1]
["Oaxaca","Magdalena Tequisistlan",1]
["Oaxaca","Magdalena Tlacotepec",1]
["Oaxaca","Magdalena Yodocono De Porfirio Diaz",1]
["Oaxaca","Magdalena Zahuatlan",1]
["Oaxaca","Mariscala De Juarez",1]
["Oaxaca","Martires De Tacubaya",1]
["Oaxaca","Matias Romero Avendaño",1]
["Oaxaca","Mazatlan Villa De Flores",1]
["Oaxaca","Mesones Hidalgo",1]
["Oaxaca","Miahuatlan De Porfirio Diaz",1]
["Oaxaca","Mixistlan De La Reforma",1]
["Oaxaca","Monjas",1]
["Oaxaca","Natividad",1]
["Oaxaca","Nazareno Etla",1]
["Oaxaca","Nejapa De Madero",1]
["Oaxaca","Nuevo Zoquiapam",1]
["Oaxaca","Oaxaca De Juarez",1]
["Oaxaca","Ocotlan De Morelos",1]
["Oaxaca","Pinotepa De Don Luis",1]
["Oaxaca","Pluma Hidalgo",1]
["Oaxaca","Putla Villa De Guerrero",1]
["Oaxaca","Reforma De Pineda",1]
["Oaxaca","Reyes Etla",1]
["Oaxaca","Rojas De Cuauhtemoc",1]
["Oaxaca","Salina Cruz",1]
["Oaxaca","San Agustin Amatengo",1]
["Oaxaca","San Agustin Atenango",1]
["Oaxaca","San Agustin Chayuco",1]
["Oaxaca","San Agustin De Las Juntas",1]
["Oaxaca","San Agustin Etla",1]
["Oaxaca","San Agustin Loxicha",1]
["Oaxaca","San Agustin Tlacotepec",1]
["Oaxaca","San Agustin Yatareni",1]
["Oaxaca","San Andres Cabecera Nueva",1]
["Oaxaca","San Andres Dinicuiti",1]
["Oaxaca","San Andres Huaxpaltepec",1]
["Oaxaca","San Andres Huayapam",1]
["Oaxaca","San Andres Ixtlahuaca",1]
["Oaxaca","San Andres Lagunas",1]
["Oaxaca","San Andres Nuxiño",1]
["Oaxaca","San Andres Paxtlan",1]
["Oaxaca","San Andres Sinaxtla",1]
["Oaxaca","San Andres Solaga",1]
["Oaxaca","San Andres Teotilalpam",1]
["Oaxaca","San Andres Tepetlapa",1]
["Oaxaca","San Andres Yaa",1]
["Oaxaca","San Andres Zabache",1]
["Oaxaca","San Andres Zautla",1]
["Oaxaca","San Antonino Castillo Velasco",1]
["Oaxaca","San Antonino El Alto",1]
["Oaxaca","San Antonino Monte Verde",1]
["Oaxaca","San Antonio Acutla",1]
["Oaxaca","San Antonio De La Cal",1]
["Oaxaca","San Antonio Huitepec",1]
["Oaxaca","San Antonio Nanahuatipam",1]
["Oaxaca","San Antonio Sinicahua",1]
["Oaxaca","San Antonio Tepetlapa",1]
["Oaxaca","San Baltazar Chichicapam",1]
["Oaxaca","San Baltazar Loxicha",1]
["Oaxaca","San Baltazar Yatzachi El Bajo",1]
["Oaxaca","San Bartolo Coyotepec",1]
["Oaxaca","San Bartolo Soyaltepec",1]
["Oaxaca","San Bartolo Yautepec",1]
["Oaxaca","San Bartolome Ayautla",1]
["Oaxaca","San Bartolome Loxicha",1]
["Oaxaca","San Bartolome Quialana",1]
["Oaxaca","San Bartolome Yucuañe",1]
["Oaxaca","San Bartolome Zoogocho",1]
["Oaxaca","San Bernardo Mixtepec",1]
["Oaxaca","San Blas Atempa",1]
["Oaxaca","San Carlos Yautepec",1]
["Oaxaca","San Cristobal Amatlan",1]
["Oaxaca","San Cristobal Amoltepec",1]
["Oaxaca","San Cristobal Lachirioag",1]
["Oaxaca","San Cristobal Suchixtlahuaca",1]
["Oaxaca","San Dionisio Del Mar",1]
["Oaxaca","San Dionisio Ocotepec",1]
["Oaxaca","San Dionisio Ocotlan",1]
["Oaxaca","San Esteban Atatlahuca",1]
["Oaxaca","San Felipe Jalapa De Diaz",1]
["Oaxaca","San Felipe Tejalapam",1]
["Oaxaca","San Felipe Usila",1]
["Oaxaca","San Francisco Cahuacua",1]
["Oaxaca","San Francisco Cajonos",1]
["Oaxaca","San Francisco Chapulapa",1]
["Oaxaca","San Francisco Chindua",1]
["Oaxaca","San Francisco Del Mar",1]
["Oaxaca","San Francisco Huehuetlan",1]
["Oaxaca","San Francisco Ixhuatan",1]
["Oaxaca","San Francisco Jaltepetongo",1]
["Oaxaca","San Francisco Lachigolo",1]
["Oaxaca","San Francisco Logueche",1]
["Oaxaca","San Francisco Nuxaño",1]
["Oaxaca","San Francisco Ozolotepec",1]
["Oaxaca","San Francisco Sola",1]
["Oaxaca","San Francisco Telixtlahuaca",1]
["Oaxaca","San Francisco Teopan",1]
["Oaxaca","San Francisco Tlapancingo",1]
["Oaxaca","San Gabriel Mixtepec",1]
["Oaxaca","San Ildefonso Amatlan",1]
["Oaxaca","San Ildefonso Sola",1]
["Oaxaca","San Ildefonso Villa Alta",1]
["Oaxaca","San Jacinto Amilpas",1]
["Oaxaca","San Jacinto Tlacotepec",1]
["Oaxaca","San Jeronimo Coatlan",1]
["Oaxaca","San Jeronimo Silacayoapilla",1]
["Oaxaca","San Jeronimo Sosola",1]
["Oaxaca","San Jeronimo Taviche",1]
["Oaxaca","San Jeronimo Tecoatl",1]
["Oaxaca","San Jeronimo Tlacochahuaya",1]
["Oaxaca","San Jorge Nuchita",1]
["Oaxaca","San Jose Ayuquila",1]
["Oaxaca","San Jose Chiltepec",1]
["Oaxaca","San Jose Del Peñasco",1]
["Oaxaca","San Jose Del Progreso",1]
["Oaxaca","San Jose Estancia Grande",1]
["Oaxaca","San Jose Independencia",1]
["Oaxaca","San Jose Lachiguiri",1]
["Oaxaca","San Jose Tenango",1]
["Oaxaca","San Juan Achiutla",1]
["Oaxaca","San Juan Atepec",1]
["Oaxaca","San Juan Bautista Atatlahuca",1]
["Oaxaca","San Juan Bautista Coixtlahuaca",1]
["Oaxaca","San Juan Bautista Cuicatlan",1]
["Oaxaca","San Juan Bautista Guelache",1]
["Oaxaca","San Juan Bautista Jayacatlan",1]
["Oaxaca","San Juan Bautista Lo De Soto",1]
["Oaxaca","San Juan Bautista Suchitepec",1]
["Oaxaca","San Juan Bautista Tlachichilco",1]
["Oaxaca","San Juan Bautista Tlacoatzintepec",1]
["Oaxaca","San Juan Bautista Tuxtepec",1]
["Oaxaca","San Juan Bautista Valle Nacional",1]
["Oaxaca","San Juan Cacahuatepec",1]
["Oaxaca","San Juan Chicomezuchil",1]
["Oaxaca","San Juan Chilateca",1]
["Oaxaca","San Juan Cieneguilla",1]
["Oaxaca","San Juan Coatzospam",1]
["Oaxaca","San Juan Colorado",1]
["Oaxaca","San Juan Comaltepec",1]
["Oaxaca","San Juan Cotzocon",1]
["Oaxaca","San Juan De Los Cues",1]
["Oaxaca","San Juan Del Estado",1]
["Oaxaca","San Juan Del Rio",1]
["Oaxaca","San Juan Diuxi",1]
["Oaxaca","San Juan Evangelista Analco",1]
["Oaxaca","San Juan Guelavia",1]
["Oaxaca","San Juan Guichicovi",1]
["Oaxaca","San Juan Ihualtepec",1]
["Oaxaca","San Juan Juquila Mixes",1]
["Oaxaca","San Juan Juquila Vijanos",1]
["Oaxaca","San Juan Lachao",1]
["Oaxaca","San Juan Lachigalla",1]
["Oaxaca","San Juan Lajarcia",1]
["Oaxaca","San Juan Lalana",1]
["Oaxaca","San Juan Mazatlan",1]
["Oaxaca","San Juan Mixtepec -Dto. 08 -",1]
["Oaxaca","San Juan Mixtepec -Dto. 26 -",1]
["Oaxaca","San Juan Ñumi",1]
["Oaxaca","San Juan Ozolotepec",1]
["Oaxaca","San Juan Petlapa",1]
["Oaxaca","San Juan Quiahije",1]
["Oaxaca","San Juan Quiotepec",1]
["Oaxaca","San Juan Sayultepec",1]
["Oaxaca","San Juan Tabaa",1]
["Oaxaca","San Juan Tamazola",1]
["Oaxaca","San Juan Teita",1]
["Oaxaca","San Juan Teitipac",1]
["Oaxaca","San Juan Tepeuxila",1]
["Oaxaca","San Juan Teposcolula",1]
["Oaxaca","San Juan Yaee",1]
["Oaxaca","San Juan Yatzona",1]
["Oaxaca","San Juan Yucuita",1]
["Oaxaca","San Lorenzo",1]
["Oaxaca","San Lorenzo Albarradas",1]
["Oaxaca","San Lorenzo Cacaotepec",1]
["Oaxaca","San Lorenzo Cuaunecuiltitla",1]
["Oaxaca","San Lorenzo Texmelucan",1]
["Oaxaca","San Lorenzo Victoria",1]
["Oaxaca","San Lucas Camotlan",1]
["Oaxaca","San Lucas Ojitlan",1]
["Oaxaca","San Lucas Quiavini",1]
["Oaxaca","San Lucas Zoquiapam",1]
["Oaxaca","San Luis Amatlan",1]
["Oaxaca","San Marcial Ozolotepec",1]
["Oaxaca","San Marcos Arteaga",1]
["Oaxaca","San Martin De Los Cansecos",1]
["Oaxaca","San Martin Huamelulpam",1]
["Oaxaca","San Martin Itunyoso",1]
["Oaxaca","San Martin Lachila",1]
["Oaxaca","San Martin Peras",1]
["Oaxaca","San Martin Tilcajete",1]
["Oaxaca","San Martin Toxpalan",1]
["Oaxaca","San Martin Zacatepec",1]
["Oaxaca","San Mateo Cajonos",1]
["Oaxaca","San Mateo Del Mar",1]
["Oaxaca","San Mateo Etlatongo",1]
["Oaxaca","San Mateo Nejapam",1]
["Oaxaca","San Mateo Peñasco",1]
["Oaxaca","San Mateo Piñas",1]
["Oaxaca","San Mateo Rio Hondo",1]
["Oaxaca","San Mateo Sindihui",1]
["Oaxaca","San Mateo Tlapiltepec",1]
["Oaxaca","San Mateo Yoloxochitlan",1]
["Oaxaca","San Mateo Yucutindo",1]
["Oaxaca","San Melchor Betaza",1]
["Oaxaca","San Miguel Achiutla",1]
["Oaxaca","San Miguel Ahuehuetitlan",1]
["Oaxaca","San Miguel Aloapam",1]
["Oaxaca","San Miguel Amatitlan",1]
["Oaxaca","San Miguel Amatlan",1]
["Oaxaca","San Miguel Chicahua",1]
["Oaxaca","San Miguel Chimalapa",1]
["Oaxaca","San Miguel Coatlan",1]
["Oaxaca","San Miguel Del Puerto",1]
["Oaxaca","San Miguel Del Rio",1]
["Oaxaca","San Miguel Ejutla",1]
["Oaxaca","San Miguel El Grande",1]
["Oaxaca","San Miguel Huautla",1]
["Oaxaca","San Miguel Mixtepec",1]
["Oaxaca","San Miguel Panixtlahuaca",1]
["Oaxaca","San Miguel Peras",1]
["Oaxaca","San Miguel Piedras",1]
["Oaxaca","San Miguel Quetzaltepec",1]
["Oaxaca","San Miguel Santa Flor",1]
["Oaxaca","San Miguel Soyaltepec",1]
["Oaxaca","San Miguel Suchixtepec",1]
["Oaxaca","San Miguel Tecomatlan",1]
["Oaxaca","San Miguel Tenango",1]
["Oaxaca","San Miguel Tequixtepec",1]
["Oaxaca","San Miguel Tilquiapam",1]
["Oaxaca","San Miguel Tlacamama",1]
["Oaxaca","San Miguel Tlacotepec",1]
["Oaxaca","San Miguel Tulancingo",1]
["Oaxaca","San Miguel Yotao",1]
["Oaxaca","San Nicolas",1]
["Oaxaca","San Nicolas Hidalgo",1]
["Oaxaca","San Pablo Coatlan",1]
["Oaxaca","San Pablo Cuatro Venados",1]
["Oaxaca","San Pablo Etla",1]
["Oaxaca","San Pablo Huitzo",1]
["Oaxaca","San Pablo Huixtepec",1]
["Oaxaca","San Pablo Macuiltianguis",1]
["Oaxaca","San Pablo Tijaltepec",1]
["Oaxaca","San Pablo Villa De Mitla",1]
["Oaxaca","San Pablo Yaganiza",1]
["Oaxaca","San Pedro Amuzgos",1]
["Oaxaca","San Pedro Apostol",1]
["Oaxaca","San Pedro Atoyac",1]
["Oaxaca","San Pedro Cajonos",1]
["Oaxaca","San Pedro Comitancillo",1]
["Oaxaca","San Pedro Coxcaltepec Cantaros",1]
["Oaxaca","San Pedro El Alto",1]
["Oaxaca","San Pedro Huamelula",1]
["Oaxaca","San Pedro Huilotepec",1]
["Oaxaca","San Pedro Ixcatlan",1]
["Oaxaca","San Pedro Ixtlahuaca",1]
["Oaxaca","San Pedro Jaltepetongo",1]
["Oaxaca","San Pedro Jicayan",1]
["Oaxaca","San Pedro Jocotipac",1]
["Oaxaca","San Pedro Juchatengo",1]
["Oaxaca","San Pedro Martir",1]
["Oaxaca","San Pedro Martir Quiechapa",1]
["Oaxaca","San Pedro Martir Yucuxaco",1]
["Oaxaca","San Pedro Mixtepec -Dto. 22 -",1]
["Oaxaca","San Pedro Mixtepec -Dto. 26 -",1]
["Oaxaca","San Pedro Molinos",1]
["Oaxaca","San Pedro Nopala",1]
["Oaxaca","San Pedro Ocopetatillo",1]
["Oaxaca","San Pedro Ocotepec",1]
["Oaxaca","San Pedro Pochutla",1]
["Oaxaca","San Pedro Quiatoni",1]
["Oaxaca","San Pedro Sochiapam",1]
["Oaxaca","San Pedro Tapanatepec",1]
["Oaxaca","San Pedro Taviche",1]
["Oaxaca","San Pedro Teozacoalco",1]
["Oaxaca","San Pedro Teutila",1]
["Oaxaca","San Pedro Tidaa",1]
["Oaxaca","San Pedro Topiltepec",1]
["Oaxaca","San Pedro Totolapam",1]
["Oaxaca","San Pedro Y San Pablo Ayutla",1]
["Oaxaca","San Pedro Y San Pablo Teposcolula",1]
["Oaxaca","San Pedro Y San Pablo Tequixtepec",1]
["Oaxaca","San Pedro Yaneri",1]
["Oaxaca","San Pedro Yolox",1]
["Oaxaca","San Pedro Yucunama",1]
["Oaxaca","San Raymundo Jalpan",1]
["Oaxaca","San Sebastian Abasolo",1]
["Oaxaca","San Sebastian Coatlan",1]
["Oaxaca","San Sebastian Ixcapa",1]
["Oaxaca","San Sebastian Nicananduta",1]
["Oaxaca","San Sebastian Rio Hondo",1]
["Oaxaca","San Sebastian Tecomaxtlahuaca",1]
["Oaxaca","San Sebastian Teitipac",1]
["Oaxaca","San Sebastian Tutla",1]
["Oaxaca","San Simon Almolongas",1]
["Oaxaca","San Simon Zahuatlan",1]
["Oaxaca","San Vicente Coatlan",1]
["Oaxaca","San Vicente Lachixio",1]
["Oaxaca","San Vicente Nuñu",1]
["Oaxaca","Santa Ana",1]
["Oaxaca","Santa Ana Ateixtlahuaca",1]
["Oaxaca","Santa Ana Cuauhtemoc",1]
["Oaxaca","Santa Ana Del Valle",1]
["Oaxaca","Santa Ana Tavela",1]
["Oaxaca","Santa Ana Tlapacoyan",1]
["Oaxaca","Santa Ana Yareni",1]
["Oaxaca","Santa Ana Zegache",1]
["Oaxaca","Santa Catalina Quieri",1]
["Oaxaca","Santa Catarina Cuixtla",1]
["Oaxaca","Santa Catarina Ixtepeji",1]
["Oaxaca","Santa Catarina Juquila",1]
["Oaxaca","Santa Catarina Lachatao",1]
["Oaxaca","Santa Catarina Loxicha",1]
["Oaxaca","Santa Catarina Mechoacan",1]
["Oaxaca","Santa Catarina Minas",1]
["Oaxaca","Santa Catarina Quiane",1]
["Oaxaca","Santa Catarina Quioquitani",1]
["Oaxaca","Santa Catarina Tayata",1]
["Oaxaca","Santa Catarina Ticua",1]
["Oaxaca","Santa Catarina Yosonotu",1]
["Oaxaca","Santa Catarina Zapoquila",1]
["Oaxaca","Santa Cruz Acatepec",1]
["Oaxaca","Santa Cruz Amilpas",1]
["Oaxaca","Santa Cruz De Bravo",1]
["Oaxaca","Santa Cruz Itundujia",1]
["Oaxaca","Santa Cruz Mixtepec",1]
["Oaxaca","Santa Cruz Nundaco",1]
["Oaxaca","Santa Cruz Papalutla",1]
["Oaxaca","Santa Cruz Tacache De Mina",1]
["Oaxaca","Santa Cruz Tacahua",1]
["Oaxaca","Santa Cruz Tayata",1]
["Oaxaca","Santa Cruz Xitla",1]
["Oaxaca","Santa Cruz Xoxocotlan",1]
["Oaxaca","Santa Cruz Zenzontepec",1]
["Oaxaca","Santa Gertrudis",1]
["Oaxaca","Santa Ines De Zaragoza",1]
["Oaxaca","Santa Ines Del Monte",1]
["Oaxaca","Santa Ines Yatzeche",1]
["Oaxaca","Santa Lucia Del Camino",1]
["Oaxaca","Santa Lucia Miahuatlan",1]
["Oaxaca","Santa Lucia Monteverde",1]
["Oaxaca","Santa Lucia Ocotlan",1]
["Oaxaca","Santa Magdalena Jicotlan",1]
["Oaxaca","Santa Maria Alotepec",1]
["Oaxaca","Santa Maria Apazco",1]
["Oaxaca","Santa Maria Atzompa",1]
["Oaxaca","Santa Maria Camotlan",1]
["Oaxaca","Santa Maria Chachoapam",1]
["Oaxaca","Santa Maria Chilchotla",1]
["Oaxaca","Santa Maria Chimalapa",1]
["Oaxaca","Santa Maria Colotepec",1]
["Oaxaca","Santa Maria Cortijo",1]
["Oaxaca","Santa Maria Coyotepec",1]
["Oaxaca","Santa Maria Del Rosario",1]
["Oaxaca","Santa Maria Del Tule",1]
["Oaxaca","Santa Maria Ecatepec",1]
["Oaxaca","Santa Maria Guelace",1]
["Oaxaca","Santa Maria Guienagati",1]
["Oaxaca","Santa Maria Huatulco",1]
["Oaxaca","Santa Maria Huazolotitlan",1]
["Oaxaca","Santa Maria Ipalapa",1]
["Oaxaca","Santa Maria Ixcatlan",1]
["Oaxaca","Santa Maria Jacatepec",1]
["Oaxaca","Santa Maria Jalapa Del Marques",1]
["Oaxaca","Santa Maria Jaltianguis",1]
["Oaxaca","Santa Maria La Asuncion",1]
["Oaxaca","Santa Maria Lachixio",1]
["Oaxaca","Santa Maria Mixtequilla",1]
["Oaxaca","Santa Maria Nativitas",1]
["Oaxaca","Santa Maria Nduayaco",1]
["Oaxaca","Santa Maria Ozolotepec",1]
["Oaxaca","Santa Maria Papalo",1]
["Oaxaca","Santa Maria Peñoles",1]
["Oaxaca","Santa Maria Petapa",1]
["Oaxaca","Santa Maria Quiegolani",1]
["Oaxaca","Santa Maria Sola",1]
["Oaxaca","Santa Maria Tataltepec",1]
["Oaxaca","Santa Maria Tecomavaca",1]
["Oaxaca","Santa Maria Temaxcalapa",1]
["Oaxaca","Santa Maria Temaxcaltepec",1]
["Oaxaca","Santa Maria Teopoxco",1]
["Oaxaca","Santa Maria Tepantlali",1]
["Oaxaca","Santa Maria Texcatitlan",1]
["Oaxaca","Santa Maria Tlahuitoltepec",1]
["Oaxaca","Santa Maria Tlalixtac",1]
["Oaxaca","Santa Maria Tonameca",1]
["Oaxaca","Santa Maria Totolapilla",1]
["Oaxaca","Santa Maria Xadani",1]
["Oaxaca","Santa Maria Yalina",1]
["Oaxaca","Santa Maria Yavesia",1]
["Oaxaca","Santa Maria Yolotepec",1]
["Oaxaca","Santa Maria Yosoyua",1]
["Oaxaca","Santa Maria Yucuhiti",1]
["Oaxaca","Santa Maria Zacatepec",1]
["Oaxaca","Santa Maria Zaniza",1]
["Oaxaca","Santa Maria Zoquitlan",1]
["Oaxaca","Santiago Amoltepec",1]
["Oaxaca","Santiago Apoala",1]
["Oaxaca","Santiago Apostol",1]
["Oaxaca","Santiago Astata",1]
["Oaxaca","Santiago Atitlan",1]
["Oaxaca","Santiago Ayuquililla",1]
["Oaxaca","Santiago Cacaloxtepec",1]
["Oaxaca","Santiago Camotlan",1]
["Oaxaca","Santiago Chazumba",1]
["Oaxaca","Santiago Choapam",1]
["Oaxaca","Santiago Comaltepec",1]
["Oaxaca","Santiago Del Rio",1]
["Oaxaca","Santiago Huajolotitlan",1]
["Oaxaca","Santiago Huauclilla",1]
["Oaxaca","Santiago Ihuitlan Plumas",1]
["Oaxaca","Santiago Ixcuintepec",1]
["Oaxaca","Santiago Ixtayutla",1]
["Oaxaca","Santiago Jamiltepec",1]
["Oaxaca","Santiago Jocotepec",1]
["Oaxaca","Santiago Juxtlahuaca",1]
["Oaxaca","Santiago Lachiguiri",1]
["Oaxaca","Santiago Lalopa",1]
["Oaxaca","Santiago Laollaga",1]
["Oaxaca","Santiago Laxopa",1]
["Oaxaca","Santiago Llano Grande",1]
["Oaxaca","Santiago Matatlan",1]
["Oaxaca","Santiago Miltepec",1]
["Oaxaca","Santiago Minas",1]
["Oaxaca","Santiago Nacaltepec",1]
["Oaxaca","Santiago Nejapilla",1]
["Oaxaca","Santiago Niltepec",1]
["Oaxaca","Santiago Nundiche",1]
["Oaxaca","Santiago Nuyoo",1]
["Oaxaca","Santiago Pinotepa Nacional",1]
["Oaxaca","Santiago Suchilquitongo",1]
["Oaxaca","Santiago Tamazola",1]
["Oaxaca","Santiago Tapextla",1]
["Oaxaca","Santiago Tenango",1]
["Oaxaca","Santiago Tepetlapa",1]
["Oaxaca","Santiago Tetepec",1]
["Oaxaca","Santiago Texcalcingo",1]
["Oaxaca","Santiago Textitlan",1]
["Oaxaca","Santiago Tilantongo",1]
["Oaxaca","Santiago Tillo",1]
["Oaxaca","Santiago Tlazoyaltepec",1]
["Oaxaca","Santiago Xanica",1]
["Oaxaca","Santiago Xiacui",1]
["Oaxaca","Santiago Yaitepec",1]
["Oaxaca","Santiago Yaveo",1]
["Oaxaca","Santiago Yolomecatl",1]
["Oaxaca","Santiago Yosondua",1]
["Oaxaca","Santiago Yucuyachi",1]
["Oaxaca","Santiago Zacatepec",1]
["Oaxaca","Santiago Zoochila",1]
["Oaxaca","Santo Domingo Albarradas",1]
["Oaxaca","Santo Domingo Armenta",1]
["Oaxaca","Santo Domingo Chihuitan",1]
["Oaxaca","Santo Domingo De Morelos",1]
["Oaxaca","Santo Domingo Ingenio",1]
["Oaxaca","Santo Domingo Ixcatlan",1]
["Oaxaca","Santo Domingo Nuxaa",1]
["Oaxaca","Santo Domingo Ozolotepec",1]
["Oaxaca","Santo Domingo Petapa",1]
["Oaxaca","Santo Domingo Roayaga",1]
["Oaxaca","Santo Domingo Tehuantepec",1]
["Oaxaca","Santo Domingo Teojomulco",1]
["Oaxaca","Santo Domingo Tepuxtepec",1]
["Oaxaca","Santo Domingo Tlatayapam",1]
["Oaxaca","Santo Domingo Tomaltepec",1]
["Oaxaca","Santo Domingo Tonala",1]
["Oaxaca","Santo Domingo Tonaltepec",1]
["Oaxaca","Santo Domingo Xagacia",1]
["Oaxaca","Santo Domingo Yanhuitlan",1]
["Oaxaca","Santo Domingo Yodohino",1]
["Oaxaca","Santo Domingo Zanatepec",1]
["Oaxaca","Santo Tomas Jalieza",1]
["Oaxaca","Santo Tomas Mazaltepec",1]
["Oaxaca","Santo Tomas Ocotepec",1]
["Oaxaca","Santo Tomas Tamazulapan",1]
["Oaxaca","Santos Reyes Nopala",1]
["Oaxaca","Santos Reyes Papalo",1]
["Oaxaca","Santos Reyes Tepejillo",1]
["Oaxaca","Santos Reyes Yucuna",1]
["Oaxaca","Silacayoapam",1]
["Oaxaca","Sitio De Xitlapehua",1]
["Oaxaca","Soledad Etla",1]
["Oaxaca","Tamazulapam Del Espiritu Santo",1]
["Oaxaca","Tanetze De Zaragoza",1]
["Oaxaca","Taniche",1]
["Oaxaca","Tataltepec De Valdes",1]
["Oaxaca","Teococuilco De Marcos Perez",1]
["Oaxaca","Teotitlan De Flores Magon",1]
["Oaxaca","Teotitlan Del Valle",1]
["Oaxaca","Teotongo",1]
["Oaxaca","Tepelmeme Villa De Morelos",1]
["Oaxaca","Tlacolula De Matamoros",1]
["Oaxaca","Tlacotepec Plumas",1]
["Oaxaca","Tlalixtac De Cabrera",1]
["Oaxaca","Totontepec Villa De Morelos",1]
["Oaxaca","Trinidad Zaachila",1]
["Oaxaca","Union Hidalgo",1]
["Oaxaca","Valerio Trujano",1]
["Oaxaca","Villa De Chilapa De Diaz",1]
["Oaxaca","Villa De Etla",1]
["Oaxaca","Villa De Tamazulapam Del Progreso",1]
["Oaxaca","Villa De Tututepec De Melchor Ocampo",1]
["Oaxaca","Villa De Zaachila",1]
["Oaxaca","Villa Diaz Ordaz",1]
["Oaxaca","Villa Hidalgo",1]
["Oaxaca","Villa Sola De Vega",1]
["Oaxaca","Villa Talea De Castro",1]
["Oaxaca","Villa Tejupam De La Union",1]
["Oaxaca","Yaxe",1]
["Oaxaca","Yogana",1]
["Oaxaca","Yutanduchi De Guerrero",1]
["Oaxaca","Zapotitlan Lagunas",1]
["Oaxaca","Zapotitlan Palmas",1]
["Oaxaca","Zimatlan De Alvarez",1]
["Puebla","Acajete",1]
["Puebla","Acateno",1]
["Puebla","Acatlan",1]
["Puebla","Acatzingo",1]
["Puebla","Acteopan",1]
["Puebla","Ahuacatlan",1]
["Puebla","Ahuatlan",1]
["Puebla","Ahuazotepec",1]
["Puebla","Ahuehuetitla",1]
["Puebla","Ajalpan",1]
["Puebla","Albino Zertuche",1]
["Puebla","Aljojuca",1]
["Puebla","Altepexi",1]
["Puebla","Amixtlan",1]
["Puebla","Amozoc",1]
["Puebla","Aquixtla",1]
["Puebla","Atempan",1]
["Puebla","Atexcal",1]
["Puebla","Atlequizayan",1]
["Puebla","Atlixco",1]
["Puebla","Atoyatempan",1]
["Puebla","Atzala",1]
["Puebla","Atzitzihuacan",1]
["Puebla","Atzitzintla",1]
["Puebla","Axutla",1]
["Puebla","Ayotoxco De Guerrero",1]
["Puebla","Calpan",1]
["Puebla","Caltepec",1]
["Puebla","Camocuautla",1]
["Puebla","Cañada Morelos",1]
["Puebla","Caxhuacan",1]
["Puebla","Chalchicomula De Sesma",1]
["Puebla","Chapulco",1]
["Puebla","Chiautla",1]
["Puebla","Chiautzingo",1]
["Puebla","Chichiquila",1]
["Puebla","Chiconcuautla",1]
["Puebla","Chietla",1]
["Puebla","Chigmecatitlan",1]
["Puebla","Chignahuapan",1]
["Puebla","Chignautla",1]
["Puebla","Chila",1]
["Puebla","Chila De La Sal",1]
["Puebla","Chilchotla",1]
["Puebla","Chinantla",1]
["Puebla","Coatepec",1]
["Puebla","Coatzingo",1]
["Puebla","Cohetzala",1]
["Puebla","Cohuecan",1]
["Puebla","Coronango",1]
["Puebla","Coxcatlan",1]
["Puebla","Coyomeapan",1]
["Puebla","Coyotepec",1]
["Puebla","Cuapiaxtla De Madero",1]
["Puebla","Cuautempan",1]
["Puebla","Cuautinchan",1]
["Puebla","Cuautlancingo",1]
["Puebla","Cuayuca De Andrade",1]
["Puebla","Cuetzalan Del Progreso",1]
["Puebla","Cuyoaco",1]
["Puebla","Domingo Arenas",1]
["Puebla","Eloxochitlan",1]
["Puebla","Epatlan",1]
["Puebla","Esperanza",1]
["Puebla","Francisco Z. Mena",1]
["Puebla","General Felipe Angeles",1]
["Puebla","Guadalupe",1]
["Puebla","Guadalupe Victoria",1]
["Puebla","Hermenegildo Galeana",1]
["Puebla","Honey",1]
["Puebla","Huaquechula",1]
["Puebla","Huatlatlauca",1]
["Puebla","Huauchinango",1]
["Puebla","Huehuetla",1]
["Puebla","Huehuetlan El Chico",1]
["Puebla","Huehuetlan El Grande",1]
["Puebla","Huejotzingo",1]
["Puebla","Hueyapan",1]
["Puebla","Hueytamalco",1]
["Puebla","Hueytlalpan",1]
["Puebla","Huitzilan De Serdan",1]
["Puebla","Huitziltepec",1]
["Puebla","Ixcamilpa De Guerrero",1]
["Puebla","Ixcaquixtla",1]
["Puebla","Ixtacamaxtitlan",1]
["Puebla","Ixtepec",1]
["Puebla","Izucar De Matamoros",1]
["Puebla","Jalpan",1]
["Puebla","Jolalpan",1]
["Puebla","Jonotla",1]
["Puebla","Jopala",1]
["Puebla","Juan C. Bonilla",1]
["Puebla","Juan Galindo",1]
["Puebla","Juan N. Mendez",1]
["Puebla","La Magdalena Tlatlauquitepec",1]
["Puebla","Lafragua",1]
["Puebla","Libres",1]
["Puebla","Los Reyes De Juarez",1]
["Puebla","Mazapiltepec De Juarez",1]
["Puebla","Mixtla",1]
["Puebla","Molcaxac",1]
["Puebla","Naupan",1]
["Puebla","Nauzontla",1]
["Puebla","Nealtican",1]
["Puebla","Nicolas Bravo",1]
["Puebla","Nopalucan",1]
["Puebla","Ocotepec",1]
["Puebla","Ocoyucan",1]
["Puebla","Olintla",1]
["Puebla","Oriental",1]
["Puebla","Pahuatlan",1]
["Puebla","Palmar De Bravo",1]
["Puebla","Pantepec",1]
["Puebla","Petlalcingo",1]
["Puebla","Piaxtla",1]
["Puebla","Puebla",0.98199999999999998]
["Puebla","Quecholac",1]
["Puebla","Quimixtlan",1]
["Puebla","Rafael Lara Grajales",1]
["Puebla","San Andres Cholula",1]
["Puebla","San Antonio Cañada",1]
["Puebla","San Diego La Mesa Tochimiltzingo",1]
["Puebla","San Felipe Teotlalcingo",1]
["Puebla","San Felipe Tepatlan",1]
["Puebla","San Gabriel Chilac",1]
["Puebla","San Gregorio Atzompa",1]
["Puebla","San Jeronimo Tecuanipan",1]
["Puebla","San Jeronimo Xayacatlan",1]
["Puebla","San Jose Chiapa",1]
["Puebla","San Jose Miahuatlan",1]
["Puebla","San Juan Atenco",1]
["Puebla","San Juan Atzompa",1]
["Puebla","San Martin Texmelucan",1]
["Puebla","San Martin Totoltepec",1]
["Puebla","San Matias Tlalancaleca",1]
["Puebla","San Miguel Ixitlan",1]
["Puebla","San Miguel Xoxtla",1]
["Puebla","San Nicolas Buenos Aires",1]
["Puebla","San Nicolas De Los Ranchos",1]
["Puebla","San Pablo Anicano",1]
["Puebla","San Pedro Cholula",1]
["Puebla","San Pedro Yeloixtlahuaca",1]
["Puebla","San Salvador El Seco",1]
["Puebla","San Salvador El Verde",1]
["Puebla","San Salvador Huixcolotla",1]
["Puebla","San Sebastian Tlacotepec",1]
["Puebla","Santa Catarina Tlaltempan",1]
["Puebla","Santa Ines Ahuatempan",1]
["Puebla","Santa Isabel Cholula",1]
["Puebla","Santiago Miahuatlan",1]
["Puebla","Santo Tomas Hueyotlipan",1]
["Puebla","Soltepec",1]
["Puebla","Tecali De Herrera",1]
["Puebla","Tecamachalco",1]
["Puebla","Tecomatlan",1]
["Puebla","Tehuacan",1]
["Puebla","Tehuitzingo",1]
["Puebla","Tenampulco",1]
["Puebla","Teopantlan",1]
["Puebla","Teotlalco",1]
["Puebla","Tepanco De Lopez",1]
["Puebla","Tepango De Rodriguez",1]
["Puebla","Tepatlaxco De Hidalgo",1]
["Puebla","Tepeaca",1]
["Puebla","Tepemaxalco",1]
["Puebla","Tepeojuma",1]
["Puebla","Tepetzintla",1]
["Puebla","Tepexco",1]
["Puebla","Tepexi De Rodriguez",1]
["Puebla","Tepeyahualco",1]
["Puebla","Tepeyahualco De Cuauhtemoc",1]
["Puebla","Tetela De Ocampo",1]
["Puebla","Teteles De Avila Castillo",1]
["Puebla","Teziutlan",1]
["Puebla","Tianguismanalco",1]
["Puebla","Tilapa",1]
["Puebla","Tlachichuca",1]
["Puebla","Tlacotepec De Benito Juarez",1]
["Puebla","Tlacuilotepec",1]
["Puebla","Tlahuapan",1]
["Puebla","Tlaltenango",1]
["Puebla","Tlanepantla",1]
["Puebla","Tlaola",1]
["Puebla","Tlapacoya",1]
["Puebla","Tlapanala",1]
["Puebla","Tlatlauquitepec",1]
["Puebla","Tlaxco",1]
["Puebla","Tochimilco",1]
["Puebla","Tochtepec",1]
["Puebla","Totoltepec De Guerrero",1]
["Puebla","Tulcingo",1]
["Puebla","Tuzamapan De Galeana",1]
["Puebla","Tzicatlacoyan",1]
["Puebla","Venustiano Carranza",1]
["Puebla","Vicente Guerrero",1]
["Puebla","Xayacatlan De Bravo",1]
["Puebla","Xicotepec",1]
["Puebla","Xicotlan",1]
["Puebla","Xiutetelco",1]
["Puebla","Xochiapulco",1]
["Puebla","Xochiltepec",1]
["Puebla","Xochitlan De Vicente Suarez",1]
["Puebla","Xochitlan Todos Santos",1]
["Puebla","Yaonahuac",1]
["Puebla","Yehualtepec",1]
["Puebla","Zacapala",1]
["Puebla","Zacapoaxtla",1]
["Puebla","Zacatlan",1]
["Puebla","Zapotitlan",1]
["Puebla","Zapotitlan De Mendez",1]
["Puebla","Zaragoza",1]
["Puebla","Zautla",1]
["Puebla","Zihuateutla",1]
["Puebla","Zinacatepec",1]
["Puebla","Zongozotla",1]
["Puebla","Zoquiapan",1]
["Puebla","Zoquitlan",1]
["Queretaro","Amealco De Bonfil",1]
["Queretaro","Arroyo Seco",1]
["Queretaro","Cadereyta De Montes",1]
["Queretaro","Colon",1]
["Queretaro","Corregidora",1]
["Queretaro","El Marques",1]
["Queretaro","Ezequiel Montes",1]
["Queretaro","Huimilpan",1]
["Queretaro","Jalpan De Serra",1]
["Queretaro","Landa De Matamoros",1]
["Queretaro","Pedro Escobedo",1]
["Queretaro","Peñamiller",1]
["Queretaro","Pinal De Amoles",1]
["Queretaro","Queretaro",0.98199999999999998]
["Queretaro","San Joaquin",1]
["Queretaro","San Juan Del Rio",1]
["Queretaro","Tequisquiapan",1]
["Queretaro","Toliman",1]
["Quintana Roo","Bacalar",1]
["Quintana Roo","Benito Juarez",1]
["Quintana Roo","Cancun",1.1120000000000001]
["Quintana Roo","Cozumel",1.24]
["Quintana Roo","Felipe Carrillo Puerto",1]
["Quintana Roo","Isla Mujeres",1]
["Quintana Roo","Jose Maria Morelos",1]
["Quintana Roo","Lazaro Cardenas",1]
["Quintana Roo","Othon P. Blanco",1]
["Quintana Roo","Solidaridad",1]
["Quintana Roo","Tulum",1]
["San Luis Potosi","Ahualulco",1]
["San Luis Potosi","Alaquines",1]
["San Luis Potosi","Aquismon",1]
["San Luis Potosi","Armadillo De Los Infante",1]
["San Luis Potosi","Axtla De Terrazas",1]
["San Luis Potosi","Cardenas",1]
["San Luis Potosi","Catorce",1]
["San Luis Potosi","Cedral",1]
["San Luis Potosi","Cerritos",1]
["San Luis Potosi","Cerro De San Pedro",1]
["San Luis Potosi","Charcas",1]
["San Luis Potosi","Ciudad Del Maiz",1]
["San Luis Potosi","Ciudad Fernandez",1]
["San Luis Potosi","Ciudad Valles",0.91800000000000004]
["San Luis Potosi","Coxcatlan",1]
["San Luis Potosi","Ebano",1]
["San Luis Potosi","El Naranjo",1]
["San Luis Potosi","Guadalcazar",1]
["San Luis Potosi","Huehuetlan",1]
["San Luis Potosi","Lagunillas",1]
["San Luis Potosi","Matehuala",0.95899999999999996]
["San Luis Potosi","Matlapa",1]
["San Luis Potosi","Mexquitic De Carmona",1]
["San Luis Potosi","Moctezuma",1]
["San Luis Potosi","Rayon",1]
["San Luis Potosi","Rioverde",1]
["San Luis Potosi","Salinas",1]
["San Luis Potosi","San Antonio",1]
["San Luis Potosi","San Ciro De Acosta",1]
["San Luis Potosi","San Luis Potosi",1]
["San Luis Potosi","San Martin Chalchicuautla",1]
["San Luis Potosi","San Nicolas Tolentino",1]
["San Luis Potosi","San Vicente Tancuayalab",1]
["San Luis Potosi","Santa Catarina",1]
["San Luis Potosi","Santa Maria Del Rio",1]
["San Luis Potosi","Santo Domingo",1]
["San Luis Potosi","Soledad De Graciano Sanchez",1]
["San Luis Potosi","Tamasopo",1]
["San Luis Potosi","Tamazunchale",1]
["San Luis Potosi","Tampacan",1]
["San Luis Potosi","Tampamolon Corona",1]
["San Luis Potosi","Tamuin",1]
["San Luis Potosi","Tancanhuitz",1]
["San Luis Potosi","Tanlajas",1]
["San Luis Potosi","Tanquian De Escobedo",1]
["San Luis Potosi","Tierra Nueva",1]
["San Luis Potosi","Vanegas",1]
["San Luis Potosi","Venado",1]
["San Luis Potosi","Villa De Arista",1]
["San Luis Potosi","Villa De Arriaga",1]
["San Luis Potosi","Villa De Guadalupe",1]
["San Luis Potosi","Villa De La Paz",1]
["San Luis Potosi","Villa De Ramos",1]
["San Luis Potosi","Villa De Reyes",1]
["San Luis Potosi","Villa Hidalgo",1]
["San Luis Potosi","Villa Juarez",1]
["San Luis Potosi","Xilitla",1]
["San Luis Potosi","Zaragoza",1]
["Sinaloa","Ahome",1]
["Sinaloa","Angostura",1]
["Sinaloa","Badiraguato",1]
["Sinaloa","Choix",1]
["Sinaloa","Concordia",1]
["Sinaloa","Cosala",1]
["Sinaloa","Culiacan",1.0740000000000001]
["Sinaloa","El Fuerte",1]
["Sinaloa","Elota",1]
["Sinaloa","Escuinapa",0.96099999999999997]
["Sinaloa","Guamichil",1]
["Sinaloa","Guasave",0.97]
["Sinaloa","Los Mochis",0.96099999999999997]
["Sinaloa","Mazatlan",1.056]
["Sinaloa","Mocorito",1]
["Sinaloa","Navolato",1]
["Sinaloa","Rosario",1]
["Sinaloa","Salvador Alvarado",1]
["Sinaloa","San Ignacio",1]
["Sinaloa","Sinaloa",1]
["Sonora","Aconchi",1]
["Sonora","Agua Prieta",1.0589999999999999]
["Sonora","Alamos",1]
["Sonora","Altar",1]
["Sonora","Arivechi",1]
["Sonora","Arizpe",1]
["Sonora","Atil",1]
["Sonora","Bacadehuachi",1]
["Sonora","Bacanora",1]
["Sonora","Bacerac",1]
["Sonora","Bacoachi",1]
["Sonora","Bacum",1]
["Sonora","Banamichi",1]
["Sonora","Baviacora",1]
["Sonora","Bavispe",1]
["Sonora","Benito Juarez",1]
["Sonora","Benjamin Hill",1]
["Sonora","Caborca",1]
["Sonora","Cajeme",1]
["Sonora","Cananea",1]
["Sonora","Carbo",1]
["Sonora","Cucurpe",1]
["Sonora","Cumpas",1]
["Sonora","Divisaderos",1]
["Sonora","Empalme",0.95899999999999996]
["Sonora","Etchojoa",1]
["Sonora","Fronteras",1]
["Sonora","General Plutarco Elias Calles",1]
["Sonora","Granados",1]
["Sonora","Guaymas",1.046]
["Sonora","Hermosillo",1]
["Sonora","Huachinera",1]
["Sonora","Huasabas",1]
["Sonora","Huatabampo",1]
["Sonora","Huepac",1]
["Sonora","Imuris",1]
["Sonora","La Colorada",1]
["Sonora","Magdalena",1]
["Sonora","Mazatan",1]
["Sonora","Moctezuma",1]
["Sonora","Naco",1]
["Sonora","Nacori Chico",1]
["Sonora","Nacozari De Garcia",1]
["Sonora","Navojoa",1]
["Sonora","Nogales",1]
["Sonora","Onavas",1]
["Sonora","Opodepe",1]
["Sonora","Oquitoa",1]
["Sonora","Pitiquito",1]
["Sonora","Puerto Peñasco",1]
["Sonora","Quiriego",1]
["Sonora","Rayon",1]
["Sonora","Rosario",1]
["Sonora","Sahuaripa",1]
["Sonora","San Felipe De Jesus",1]
["Sonora","San Ignacio Rio Muerto",1]
["Sonora","San Javier",1]
["Sonora","San Luis Rio Colorado",1]
["Sonora","San Miguel De Horcasitas",1]
["Sonora","San Pedro De La Cueva",1]
["Sonora","Santa Ana",1]
["Sonora","Santa Cruz",1]
["Sonora","Saric",1]
["Sonora","Soyopa",1]
["Sonora","Suaqui Grande",1]
["Sonora","Tepache",1]
["Sonora","Trincheras",1]
["Sonora","Tubutama",1]
["Sonora","Ures",1]
["Sonora","Villa Hidalgo",1]
["Sonora","Villa Pesqueira",1]
["Sonora","Yecora",1]
["Tabasco","Balancan",1]
["Tabasco","Cardenas",1]
["Tabasco","Centla",1]
["Tabasco","Centro",1]
["Tabasco","Comalcalco",1]
["Tabasco","Cunduacan",1]
["Tabasco","Emiliano Zapata",1]
["Tabasco","Huimanguillo",1]
["Tabasco","Jalapa",1]
["Tabasco","Jalpa De Mendez",1]
["Tabasco","Jonuta",1]
["Tabasco","Macuspana",1]
["Tabasco","Nacajuca",1]
["Tabasco","Paraiso",1]
["Tabasco","Tacotalpa",1]
["Tabasco","Teapa",1]
["Tabasco","Tenosique",1]
["Tamaulipas","Abasolo",1]
["Tamaulipas","Aldama",1]
["Tamaulipas","Altamira",0.99]
["Tamaulipas","Antiguo Morelos",1]
["Tamaulipas","Burgos",1]
["Tamaulipas","Bustamante",1]
["Tamaulipas","Camargo",1]
["Tamaulipas","Casas",1]
["Tamaulipas","Ciudad Madero",1.0309999999999999]
["Tamaulipas","Cruillas",1]
["Tamaulipas","El Mante",1]
["Tamaulipas","Gomez Farias",1]
["Tamaulipas","Gonzalez",1]
["Tamaulipas","Güemez",1]
["Tamaulipas","Guerrero",1]
["Tamaulipas","Gustavo Diaz Ordaz",1]
["Tamaulipas","Hidalgo",1]
["Tamaulipas","Jaumave",1]
["Tamaulipas","Jimenez",1]
["Tamaulipas","Llera",1]
["Tamaulipas","Mainero",1]
["Tamaulipas","Matamoros",1]
["Tamaulipas","Mendez",1]
["Tamaulipas","Mier",1]
["Tamaulipas","Miguel Aleman",1]
["Tamaulipas","Miquihuana",1]
["Tamaulipas","Nuevo Laredo",1]
["Tamaulipas","Nuevo Morelos",1]
["Tamaulipas","Ocampo",1]
["Tamaulipas","Padilla",1]
["Tamaulipas","Palmillas",1]
["Tamaulipas","Reynosa",1]
["Tamaulipas","Rio Bravo",1]
["Tamaulipas","San Carlos",1]
["Tamaulipas","San Fernando",1]
["Tamaulipas","San Nicolas",1]
["Tamaulipas","Soto La Marina",1]
["Tamaulipas","Tampico",1]
["Tamaulipas","Tula",1]
["Tamaulipas","Valle Hermoso",1]
["Tamaulipas","Victoria",1]
["Tamaulipas","Villagran",1]
["Tamaulipas","Xicotencatl",1]
["Tlaxcala","Acuamanala De Miguel Hidalgo",1]
["Tlaxcala","Altzayanca",1]
["Tlaxcala","Amaxac De Guerrero",1]
["Tlaxcala","Apetatitlan De Antonio Carvajal",1]
["Tlaxcala","Apizaco",0.86399999999999999]
["Tlaxcala","Atlangatepec",1]
["Tlaxcala","Benito Juarez",1]
["Tlaxcala","Calpulalpan",1]
["Tlaxcala","Chiautempan",0.91400000000000003]
["Tlaxcala","Contla De Juan Cuamatzi",1]
["Tlaxcala","Cuapiaxtla",1]
["Tlaxcala","Cuaxomulco",1]
["Tlaxcala","El Carmen Tequexquitla",1]
["Tlaxcala","Emiliano Zapata",1]
["Tlaxcala","Españita",1]
["Tlaxcala","Huamantla",0.879]
["Tlaxcala","Hueyotlipan",1]
["Tlaxcala","Ixtacuixtla De Mariano Matamoros",1]
["Tlaxcala","Ixtenco",1]
["Tlaxcala","La Magdalena Tlaltelulco",1]
["Tlaxcala","Lazaro Cardenas",1]
["Tlaxcala","Mazatecochco De Jose Maria Morelos",1]
["Tlaxcala","Muñoz De Domingo Arenas",1]
["Tlaxcala","Nanacamilpa De Mariano Arista",1]
["Tlaxcala","Nativitas",1]
["Tlaxcala","Panotla",1]
["Tlaxcala","Papalotla De Xicohtencatl",1]
["Tlaxcala","San Damian Texoloc",1]
["Tlaxcala","San Francisco Tetlanohcan",1]
["Tlaxcala","San Jeronimo Zacualpan",1]
["Tlaxcala","San Jose Teacalco",1]
["Tlaxcala","San Juan Huactzinco",1]
["Tlaxcala","San Lorenzo Axocomanitla",1]
["Tlaxcala","San Lucas Tecopilco",1]
["Tlaxcala","San Pablo Del Monte",1]
["Tlaxcala","Sanctorum De Lazaro Cardenas",1]
["Tlaxcala","Santa Ana Nopalucan",1]
["Tlaxcala","Santa Apolonia Teacalco",1]
["Tlaxcala","Santa Catarina Ayometla",1]
["Tlaxcala","Santa Cruz Quilehtla",1]
["Tlaxcala","Santa Cruz Tlaxcala",1]
["Tlaxcala","Santa Isabel Xiloxoxtla",1]
["Tlaxcala","Tenancingo",1]
["Tlaxcala","Teolocholco",1]
["Tlaxcala","Tepetitla De Lardizabal",1]
["Tlaxcala","Tepeyanco",1]
["Tlaxcala","Terrenate",1]
["Tlaxcala","Tetla De La Solidaridad",1]
["Tlaxcala","Tetlatlahuca",1]
["Tlaxcala","Tlaxcala",0.89700000000000002]
["Tlaxcala","Tlaxco",1]
["Tlaxcala","Tocatlan",1]
["Tlaxcala","Totolac",1]
["Tlaxcala","Tzompantepec",1]
["Tlaxcala","Xaloztoc",1]
["Tlaxcala","Xaltocan",1]
["Tlaxcala","Xicohtzinco",1]
["Tlaxcala","Yauhquemehcan",1]
["Tlaxcala","Zacatelco",1]
["Tlaxcala","Ziltlaltepec De Trinidad Sanchez Santos",1]
["Veracruz De Ignacio De La Llave","Acajete",1]
["Veracruz De Ignacio De La Llave","Acatlan",1]
["Veracruz De Ignacio De La Llave","Acayucan",1]
["Veracruz De Ignacio De La Llave","Actopan",1]
["Veracruz De Ignacio De La Llave","Acula",1]
["Veracruz De Ignacio De La Llave","Acultzingo",1]
["Veracruz De Ignacio De La Llave","Agua Dulce",1]
["Veracruz De Ignacio De La Llave","Alamo Temapache",1]
["Veracruz De Ignacio De La Llave","Alpatlahuac",1]
["Veracruz De Ignacio De La Llave","Alto Lucero De Gutierrez Barrios",1]
["Veracruz De Ignacio De La Llave","Altotonga",1]
["Veracruz De Ignacio De La Llave","Alvarado",1]
["Veracruz De Ignacio De La Llave","Amatitlan",1]
["Veracruz De Ignacio De La Llave","Amatlan De Los Reyes",1]
["Veracruz De Ignacio De La Llave","Angel R. Cabada",1]
["Veracruz De Ignacio De La Llave","Apazapan",1]
["Veracruz De Ignacio De La Llave","Aquila",1]
["Veracruz De Ignacio De La Llave","Astacinga",1]
["Veracruz De Ignacio De La Llave","Atlahuilco",1]
["Veracruz De Ignacio De La Llave","Atoyac",1]
["Veracruz De Ignacio De La Llave","Atzacan",1]
["Veracruz De Ignacio De La Llave","Atzalan",1]
["Veracruz De Ignacio De La Llave","Ayahualulco",1]
["Veracruz De Ignacio De La Llave","Banderilla",1]
["Veracruz De Ignacio De La Llave","Benito Juarez",1]
["Veracruz De Ignacio De La Llave","Boca Del Rio",1]
["Veracruz De Ignacio De La Llave","Calcahualco",1]
["Veracruz De Ignacio De La Llave","Camaron De Tejeda",1]
["Veracruz De Ignacio De La Llave","Camerino Z. Mendoza",1]
["Veracruz De Ignacio De La Llave","Carlos A. Carrillo",1]
["Veracruz De Ignacio De La Llave","Carrillo Puerto",1]
["Veracruz De Ignacio De La Llave","Castillo De Teayo",1]
["Veracruz De Ignacio De La Llave","Catemaco",1]
["Veracruz De Ignacio De La Llave","Cazones De Herrera",1]
["Veracruz De Ignacio De La Llave","Cerro Azul",1]
["Veracruz De Ignacio De La Llave","Chacaltianguis",1]
["Veracruz De Ignacio De La Llave","Chalma",1]
["Veracruz De Ignacio De La Llave","Chiconamel",1]
["Veracruz De Ignacio De La Llave","Chiconquiaco",1]
["Veracruz De Ignacio De La Llave","Chicontepec",1]
["Veracruz De Ignacio De La Llave","Chinameca",1]
["Veracruz De Ignacio De La Llave","Chinampa De Gorostiza",1]
["Veracruz De Ignacio De La Llave","Chocaman",1]
["Veracruz De Ignacio De La Llave","Chontla",1]
["Veracruz De Ignacio De La Llave","Chumatlan",1]
["Veracruz De Ignacio De La Llave","Citlaltepetl",1]
["Veracruz De Ignacio De La Llave","Coacoatzintla",1]
["Veracruz De Ignacio De La Llave","Coahuitlan",1]
["Veracruz De Ignacio De La Llave","Coatepec",1]
["Veracruz De Ignacio De La Llave","Coatzacoalcos",1.0469999999999999]
["Veracruz De Ignacio De La Llave","Coatzintla",1]
["Veracruz De Ignacio De La Llave","Coetzala",1]
["Veracruz De Ignacio De La Llave","Colipa",1]
["Veracruz De Ignacio De La Llave","Comapa",1]
["Veracruz De Ignacio De La Llave","Cordoba",0.86399999999999999]
["Veracruz De Ignacio De La Llave","Cosamaloapan De Carpio",1]
["Veracruz De Ignacio De La Llave","Cosautlan De Carvajal",1]
["Veracruz De Ignacio De La Llave","Coscomatepec",1]
["Veracruz De Ignacio De La Llave","Cosoleacaque",1]
["Veracruz De Ignacio De La Llave","Cotaxtla",1]
["Veracruz De Ignacio De La Llave","Coxquihui",1]
["Veracruz De Ignacio De La Llave","Coyutla",1]
["Veracruz De Ignacio De La Llave","Cuichapa",1]
["Veracruz De Ignacio De La Llave","Cuitlahuac",1]
["Veracruz De Ignacio De La Llave","El Higo",1]
["Veracruz De Ignacio De La Llave","Emiliano Zapata",1]
["Veracruz De Ignacio De La Llave","Espinal",1]
["Veracruz De Ignacio De La Llave","Filomeno Mata",1]
["Veracruz De Ignacio De La Llave","Fortin",0.91700000000000004]
["Veracruz De Ignacio De La Llave","Gutierrez Zamora",1]
["Veracruz De Ignacio De La Llave","Hidalgotitlan",1]
["Veracruz De Ignacio De La Llave","Huatusco",1]
["Veracruz De Ignacio De La Llave","Huayacocotla",1]
["Veracruz De Ignacio De La Llave","Hueyapan De Ocampo",1]
["Veracruz De Ignacio De La Llave","Huiloapan De Cuauhtemoc",1]
["Veracruz De Ignacio De La Llave","Ignacio De La Llave",1]
["Veracruz De Ignacio De La Llave","Ilamatlan",1]
["Veracruz De Ignacio De La Llave","Isla",1]
["Veracruz De Ignacio De La Llave","Ixcatepec",1]
["Veracruz De Ignacio De La Llave","Ixhuacan De Los Reyes",1]
["Veracruz De Ignacio De La Llave","Ixhuatlan De Madero",1]
["Veracruz De Ignacio De La Llave","Ixhuatlan Del Cafe",1]
["Veracruz De Ignacio De La Llave","Ixhuatlan Del Sureste",1]
["Veracruz De Ignacio De La Llave","Ixhuatlancillo",1]
["Veracruz De Ignacio De La Llave","Ixmatlahuacan",1]
["Veracruz De Ignacio De La Llave","Ixtaczoquitlan",1]
["Veracruz De Ignacio De La Llave","Jalacingo",1]
["Veracruz De Ignacio De La Llave","Jalcomulco",1]
["Veracruz De Ignacio De La Llave","Jaltipan",1]
["Veracruz De Ignacio De La Llave","Jamapa",1]
["Veracruz De Ignacio De La Llave","Jesus Carranza",1]
["Veracruz De Ignacio De La Llave","Jilotepec",1]
["Veracruz De Ignacio De La Llave","Jose Azueta",1]
["Veracruz De Ignacio De La Llave","Juan Rodriguez Clara",1]
["Veracruz De Ignacio De La Llave","Juchique De Ferrer",1]
["Veracruz De Ignacio De La Llave","La Antigua",1]
["Veracruz De Ignacio De La Llave","La Perla",1]
["Veracruz De Ignacio De La Llave","Landero Y Coss",1]
["Veracruz De Ignacio De La Llave","Las Choapas",1]
["Veracruz De Ignacio De La Llave","Las Minas",1]
["Veracruz De Ignacio De La Llave","Las Vigas De Ramirez",1]
["Veracruz De Ignacio De La Llave","Lerdo De Tejada",1]
["Veracruz De Ignacio De La Llave","Los Reyes",1]
["Veracruz De Ignacio De La Llave","Magdalena",1]
["Veracruz De Ignacio De La Llave","Maltrata",1]
["Veracruz De Ignacio De La Llave","Manlio Fabio Altamirano",1]
["Veracruz De Ignacio De La Llave","Mariano Escobedo",1]
["Veracruz De Ignacio De La Llave","Martinez De La Torre",1]
["Veracruz De Ignacio De La Llave","Mecatlan",1]
["Veracruz De Ignacio De La Llave","Mecayapan",1]
["Veracruz De Ignacio De La Llave","Medellin",1]
["Veracruz De Ignacio De La Llave","Miahuatlan",1]
["Veracruz De Ignacio De La Llave","Minatitlan",1]
["Veracruz De Ignacio De La Llave","Misantla",1]
["Veracruz De Ignacio De La Llave","Mixtla De Altamirano",1]
["Veracruz De Ignacio De La Llave","Moloacan",1]
["Veracruz De Ignacio De La Llave","Nanchital De Lazaro Cardenas Del Rio",1]
["Veracruz De Ignacio De La Llave","Naolinco",1]
["Veracruz De Ignacio De La Llave","Naranjal",1]
["Veracruz De Ignacio De La Llave","Naranjos Amatlan",1]
["Veracruz De Ignacio De La Llave","Nautla",1]
["Veracruz De Ignacio De La Llave","Nogales",1]
["Veracruz De Ignacio De La Llave","Oluta",1]
["Veracruz De Ignacio De La Llave","Omealca",1]
["Veracruz De Ignacio De La Llave","Orizaba",1]
["Veracruz De Ignacio De La Llave","Otatitlan",1]
["Veracruz De Ignacio De La Llave","Oteapan",1]
["Veracruz De Ignacio De La Llave","Ozuluama De Mascareñas",1]
["Veracruz De Ignacio De La Llave","Pajapan",1]
["Veracruz De Ignacio De La Llave","Panuco",1]
["Veracruz De Ignacio De La Llave","Papantla",1]
["Veracruz De Ignacio De La Llave","Paso De Ovejas",1]
["Veracruz De Ignacio De La Llave","Paso Del Macho",1]
["Veracruz De Ignacio De La Llave","Perote",1]
["Veracruz De Ignacio De La Llave","Platon Sanchez",1]
["Veracruz De Ignacio De La Llave","Playa Vicente",1]
["Veracruz De Ignacio De La Llave","Poza Rica De Hidalgo",1]
["Veracruz De Ignacio De La Llave","Pueblo Viejo",1]
["Veracruz De Ignacio De La Llave","Puente Nacional",1]
["Veracruz De Ignacio De La Llave","Rafael Delgado",1]
["Veracruz De Ignacio De La Llave","Rafael Lucio",1]
["Veracruz De Ignacio De La Llave","Rio Blanco",1]
["Veracruz De Ignacio De La Llave","Saltabarranca",1]
["Veracruz De Ignacio De La Llave","San Andres Tenejapan",1]
["Veracruz De Ignacio De La Llave","San Andres Tuxtla",1]
["Veracruz De Ignacio De La Llave","San Juan Evangelista",1]
["Veracruz De Ignacio De La Llave","San Rafael",1]
["Veracruz De Ignacio De La Llave","Santiago Sochiapan",1]
["Veracruz De Ignacio De La Llave","Santiago Tuxtla",1]
["Veracruz De Ignacio De La Llave","Sayula De Aleman",1]
["Veracruz De Ignacio De La Llave","Sochiapa",1]
["Veracruz De Ignacio De La Llave","Soconusco",1]
["Veracruz De Ignacio De La Llave","Soledad Atzompa",1]
["Veracruz De Ignacio De La Llave","Soledad De Doblado",1]
["Veracruz De Ignacio De La Llave","Soteapan",1]
["Veracruz De Ignacio De La Llave","Tamalin",1]
["Veracruz De Ignacio De La Llave","Tamiahua",1]
["Veracruz De Ignacio De La Llave","Tampico Alto",1]
["Veracruz De Ignacio De La Llave","Tancoco",1]
["Veracruz De Ignacio De La Llave","Tantima",1]
["Veracruz De Ignacio De La Llave","Tantoyuca",1]
["Veracruz De Ignacio De La Llave","Tatahuicapan De Juarez",1]
["Veracruz De Ignacio De La Llave","Tatatila",1]
["Veracruz De Ignacio De La Llave","Tecolutla",1]
["Veracruz De Ignacio De La Llave","Tehuipango",1]
["Veracruz De Ignacio De La Llave","Tempoal",1]
["Veracruz De Ignacio De La Llave","Tenampa",1]
["Veracruz De Ignacio De La Llave","Tenochtitlan",1]
["Veracruz De Ignacio De La Llave","Teocelo",1]
["Veracruz De Ignacio De La Llave","Tepatlaxco",1]
["Veracruz De Ignacio De La Llave","Tepetlan",1]
["Veracruz De Ignacio De La Llave","Tepetzintla",1]
["Veracruz De Ignacio De La Llave","Tequila",1]
["Veracruz De Ignacio De La Llave","Texcatepec",1]
["Veracruz De Ignacio De La Llave","Texhuacan",1]
["Veracruz De Ignacio De La Llave","Texistepec",1]
["Veracruz De Ignacio De La Llave","Tezonapa",1]
["Veracruz De Ignacio De La Llave","Tierra Blanca",1]
["Veracruz De Ignacio De La Llave","Tihuatlan",1]
["Veracruz De Ignacio De La Llave","Tlachichilco",1]
["Veracruz De Ignacio De La Llave","Tlacojalpan",1]
["Veracruz De Ignacio De La Llave","Tlacolulan",1]
["Veracruz De Ignacio De La Llave","Tlacotalpan",1]
["Veracruz De Ignacio De La Llave","Tlacotepec De Mejia",1]
["Veracruz De Ignacio De La Llave","Tlalixcoyan",1]
["Veracruz De Ignacio De La Llave","Tlalnelhuayocan",1]
["Veracruz De Ignacio De La Llave","Tlaltetela",1]
["Veracruz De Ignacio De La Llave","Tlapacoyan",1]
["Veracruz De Ignacio De La Llave","Tlaquilpa",1]
["Veracruz De Ignacio De La Llave","Tlilapan",1]
["Veracruz De Ignacio De La Llave","Tomatlan",1]
["Veracruz De Ignacio De La Llave","Tonayan",1]
["Veracruz De Ignacio De La Llave","Totutla",1]
["Veracruz De Ignacio De La Llave","Tres Valles",1]
["Veracruz De Ignacio De La Llave","Tuxpan",1]
["Veracruz De Ignacio De La Llave","Tuxtilla",1]
["Veracruz De Ignacio De La Llave","Ursulo Galvan",1]
["Veracruz De Ignacio De La Llave","Uxpanapa",1]
["Veracruz De Ignacio De La Llave","Vega De Alatorre",1]
["Veracruz De Ignacio De La Llave","Veracruz",1]
["Veracruz De Ignacio De La Llave","Villa Aldama",1]
["Veracruz De Ignacio De La Llave","Xalapa",1]
["Veracruz De Ignacio De La Llave","Xico",1]
["Veracruz De Ignacio De La Llave","Xoxocotla",1]
["Veracruz De Ignacio De La Llave","Yanga",1]
["Veracruz De Ignacio De La Llave","Yecuatla",1]
["Veracruz De Ignacio De La Llave","Zacualpan",1]
["Veracruz De Ignacio De La Llave","Zaragoza",1]
["Veracruz De Ignacio De La Llave","Zentla",1]
["Veracruz De Ignacio De La Llave","Zongolica",1]
["Veracruz De Ignacio De La Llave","Zontecomatlan De Lopez Y Fuentes",1]
["Veracruz De Ignacio De La Llave","Zozocolco De Hidalgo",1]
["Yucatan","Abala",1]
["Yucatan","Acanceh",1]
["Yucatan","Akil",1]
["Yucatan","Baca",1]
["Yucatan","Bokoba",1]
["Yucatan","Buctzotz",1]
["Yucatan","Cacalchen",1]
["Yucatan","Calotmul",1]
["Yucatan","Cansahcab",1]
["Yucatan","Cantamayec",1]
["Yucatan","Celestun",1]
["Yucatan","Cenotillo",1]
["Yucatan","Chacsinkin",1]
["Yucatan","Chankom",1]
["Yucatan","Chapab",1]
["Yucatan","Chemax",1]
["Yucatan","Chichimila",1]
["Yucatan","Chicxulub Pueblo",1]
["Yucatan","Chikindzonot",1]
["Yucatan","Chochola",1]
["Yucatan","Chumayel",1]
["Yucatan","Conkal",1]
["Yucatan","Cuncunul",1]
["Yucatan","Cuzama",1]
["Yucatan","Dzan",1]
["Yucatan","Dzemul",1]
["Yucatan","Dzidzantun",1]
["Yucatan","Dzilam De Bravo",1]
["Yucatan","Dzilam Gonzalez",1]
["Yucatan","Dzitas",1]
["Yucatan","Dzoncauich",1]
["Yucatan","Espita",1]
["Yucatan","Halacho",1]
["Yucatan","Hocaba",1]
["Yucatan","Hoctun",1]
["Yucatan","Homun",1]
["Yucatan","Huhi",1]
["Yucatan","Hunucma",1]
["Yucatan","Ixil",1]
["Yucatan","Izamal",1]
["Yucatan","Kanasin",1]
["Yucatan","Kantunil",1]
["Yucatan","Kaua",1]
["Yucatan","Kinchil",1]
["Yucatan","Kopoma",1]
["Yucatan","Mama",1]
["Yucatan","Mani",1]
["Yucatan","Maxcanu",1]
["Yucatan","Mayapan",1]
["Yucatan","Merida",1]
["Yucatan","Mococha",1]
["Yucatan","Motul",1]
["Yucatan","Muna",1]
["Yucatan","Muxupip",1]
["Yucatan","Opichen",1]
["Yucatan","Oxkutzcab",1]
["Yucatan","Panaba",1]
["Yucatan","Peto",1]
["Yucatan","Progreso",1]
["Yucatan","Quintana Roo",1]
["Yucatan","Rio Lagartos",1]
["Yucatan","Sacalum",1]
["Yucatan","Samahil",1]
["Yucatan","San Felipe",1]
["Yucatan","Sanahcat",1]
["Yucatan","Santa Elena",1]
["Yucatan","Seye",1]
["Yucatan","Sinanche",1]
["Yucatan","Sotuta",1]
["Yucatan","Sucila",1]
["Yucatan","Sudzal",1]
["Yucatan","Suma",1]
["Yucatan","Tahdziu",1]
["Yucatan","Tahmek",1]
["Yucatan","Teabo",1]
["Yucatan","Tecoh",1]
["Yucatan","Tekal De Venegas",1]
["Yucatan","Tekanto",1]
["Yucatan","Tekax",1]
["Yucatan","Tekit",1]
["Yucatan","Tekom",1]
["Yucatan","Telchac Pueblo",1]
["Yucatan","Telchac Puerto",1]
["Yucatan","Temax",1]
["Yucatan","Temozon",1]
["Yucatan","Tepakan",1]
["Yucatan","Tetiz",1]
["Yucatan","Teya",1]
["Yucatan","Ticul",1]
["Yucatan","Timucuy",1]
["Yucatan","Tinum",1]
["Yucatan","Tixcacalcupul",1]
["Yucatan","Tixkokob",1]
["Yucatan","Tixmehuac",1]
["Yucatan","Tixpehual",1]
["Yucatan","Tizimin",1]
["Yucatan","Tunkas",1]
["Yucatan","Tzucacab",1]
["Yucatan","Uayma",1]
["Yucatan","Ucu",1]
["Yucatan","Uman",1]
["Yucatan","Valladolid",0.89700000000000002]
["Yucatan","Xocchel",1]
["Yucatan","Yaxcaba",1]
["Yucatan","Yaxkukul",1]
["Yucatan","Yobain",1]
["Zacatecas","Apozol",1]
["Zacatecas","Apulco",1]
["Zacatecas","Atolinga",1]
["Zacatecas","Benito Juarez",1]
["Zacatecas","Calera",1]
["Zacatecas","Cañitas De Felipe Pescador",1]
["Zacatecas","Chalchihuites",1]
["Zacatecas","Concepcion Del Oro",1]
["Zacatecas","Cuauhtemoc",1]
["Zacatecas","El Plateado De Joaquin Amaro",1]
["Zacatecas","El Salvador",1]
["Zacatecas","Fresnillo",0.93500000000000005]
["Zacatecas","Genaro Codina",1]
["Zacatecas","General Enrique Estrada",1]
["Zacatecas","General Francisco R. Murguia",1]
["Zacatecas","General Panfilo Natera",1]
["Zacatecas","Guadalupe",1]
["Zacatecas","Huanusco",1]
["Zacatecas","Jalpa",1]
["Zacatecas","Jerez",0.872]
["Zacatecas","Jimenez Del Teul",1]
["Zacatecas","Juan Aldama",1]
["Zacatecas","Juchipila",1]
["Zacatecas","Loreto",1]
["Zacatecas","Luis Moya",1]
["Zacatecas","Mazapil",1]
["Zacatecas","Melchor Ocampo",1]
["Zacatecas","Mezquital Del Oro",1]
["Zacatecas","Miguel Auza",1]
["Zacatecas","Momax",1]
["Zacatecas","Monte Escobedo",1]
["Zacatecas","Morelos",1]
["Zacatecas","Moyahua De Estrada",1]
["Zacatecas","Nochistlan De Mejia",1]
["Zacatecas","Noria De Angeles",1]
["Zacatecas","Ojocaliente",1]
["Zacatecas","Panuco",1]
["Zacatecas","Pinos",1]
["Zacatecas","Rio Grande",1]
["Zacatecas","Sain Alto",1]
["Zacatecas","Santa Maria De La Paz",1]
["Zacatecas","Sombrerete",1]
["Zacatecas","Susticacan",1]
["Zacatecas","Tabasco",1]
["Zacatecas","Tepechitlan",1]
["Zacatecas","Tepetongo",1]
["Zacatecas","Teul De Gonzalez Ortega",1]
["Zacatecas","Tlaltenango De Sanchez Roman",1]
["Zacatecas","Trancoso",1]
["Zacatecas","Trinidad Garcia De La Cadena",1]
["Zacatecas","Valparaiso",1]
["Zacatecas","Vetagrande",1]
["Zacatecas","Villa De Cos",1]
["Zacatecas","Villa Garcia",1]
["Zacatecas","Villa Gonzalez Ortega",1]
["Zacatecas","Villa Hidalgo",1]
["Zacatecas","Villanueva",1]
["Zacatecas","Zacatecas",0.95399999999999996]

{"sheet":"Filtro_Edo_Mpios","index":2,"n_rows":1,"n_cols":11,"rows_kept":1,"cut":false,"hidden":true,"merged":[]}
["Estado",null,"Estado","Municipio","FIC",null,null,"Municipio",null,"Municipio","FIC"]

{"sheet":"Diagrama","index":3,"n_rows":50,"n_cols":101,"rows_kept":50,"cut":false,"hidden":true,"merged":[[47,2,47,3],[49,2,49,3],[47,4,47,13],[49,4,49,13],[0,44,0,51],[42,2,42,3],[44,2,45,3],[44,4,45,13],[42,4,42,13],[21,36,21,39],[21,40,21,43],[21,44,21,47],[21,48,21,51],[21,16,21,19],[21,20,21,23],[21,24,21,27],[21,28,21,31],[21,32,21,35],[2,84,2,87],[2,88,2,91],[2,92,2,95],[2,44,2,47],[2,48,2,51],[2,52,2,55],[2,56,2,59],[2,60,2,63],[2,32,2,35],[2,36,2,39],[2,40,2,43],[2,96,2,99],[2,64,2,67],[2,68,2,71],[2,72,2,75],[2,76,2,79],[2,80,2,83],[3,1,18,1],[2,24,2,27],[2,28,2,31],[2,4,2,7],[2,8,2,11],[2,12,2,15],[2,16,2,19],[2,20,2,23],[40,4,40,13],[22,1,37,1],[21,4,21,7],[21,8,21,11],[21,12,21,15]]}
[null,null,"Superficie (m2):",{"$f":"+RegistroInf!C3","v":0},null,null,null,null,null,null,null,null,null,null,null,null,null,null,null,null,null,null,null,null,null,null,null,null,null,null,null,null,null,null,null,null,null,null,null,null,null,null,null,null,"Programa de Obra"]
[null,null,"Semanas aprox.:",96]
[null,null,null,null,"Mes 1",null,null,null,"Mes 2",null,null,null,"Mes 3",null,null,null,"Mes 4",null,null,null,"Mes 5",null,null,null,"Mes 6",null,null,null,"Mes 7",null,null,null,"Mes 8",null,null,null,"Mes 9",null,null,null,"Mes 10",null,null,null,"Mes 11",null,null,null,"Mes 12",null,null,null,"Mes 13",null,null,null,"Mes 14",null,null,null,"Mes 15",null,null,null,"Mes 16",null,null,null,"Mes 17",null,null,null,"Mes 18",null,null,null,"Mes 19",null,null,null,"Mes 20",null,null,null,"Mes 21",null,null,null,"Mes 22",null,null,null,"Mes 23",null,null,null,"Mes 24"]
[null,"Vivienda Alta Residencial 4","Concepto","%","S1","S2","S3","S4","S5","S6","S7","S8","S9","S10","S11","S12","S13","S14","S15","S16","S17","S18","S19","S20","S21","S22","S23","S24","S25","S26","S27","S28","S29","S30","S31","S32","S33","S34","S35","S36","S37","S38","S39","S40","S41","S42","S43","S44","S45","S46","S47","S48","S49","S50","S51","S52","S53","S54","S55","S56","S57","S58","S59","S60","S61","S62","S63","S64","S65","S66","S67","S68","S69","S70","S71","S72","S73","S74","S75","S76","S77","S78","S79","S80","S81","S82","S83","S84","S85","S86","S87","S88","S89","S90","S91","S92","S93","S94","S95","S96"]
[null,null,"Cimentacion",8.908656409482929E-2,1,1,1,1,1,1,1,1,1]
[null,null,"Estructura De Concreto",0.16405393791674722,null,null,null,null,null,null,null,null,0,1,1,1,1,1,1,1,1,1,1,1,1,1,1,1,1]
[null,null,"Albañileria",8.7098322189605074E-2,null,null,null,null,null,null,null,null,null,null,null,null,null,null,null,null,null,null,null,null,null,null,null,null,0,1,1,1,1,1,1,1,1]
[null,null,"Instalacion Hidraulica",1.1940689831090215E-2,null,null,null,null,null,null,null,null,null,null,null,null,null,null,null,null,null,null,null,null,null,null,null,null,null,null,null,null,null,null,null,null,0,1]
[null,null,"Instalacion Sanitaria",9.9749316246131991E-3,null,null,null,null,null,null,null,null,null,null,null,null,null,null,null,null,null,null,null,null,null,null,null,null,null,null,null,null,null,null,null,null,null,0,1]
[null,null,"Instalacion Electrica",1.1899048478743708E-2,null,null,null,null,null,null,null,null,null,null,null,null,null,null,null,null,null,null,null,null,null,null,null,null,null,null,null,null,null,null,null,null,null,null,0,1]
[null,null,"Instalacion De Gas",1.0400339818924258E-3,null,null,null,null,null,null,null,null,null,null,null,null,null,null,null,null,null,null,null,null,null,null,null,null,null,null,null,null,null,null,null,null,null,null,null,0,1]
[null,null,"Acabados Interiores",0.34333385066052607,null,null,null,null,null,null,null,null,null,null,null,null,null,null,null,null,null,null,null,null,null,null,null,null,null,null,null,null,null,null,null,null,null,null,null,null,0,1,1,1,1,1,1,1,1,1,1,1,1,1,1,1,1,1,1,1,1,1,1,1,1,1,1,1,1,1,1,1,1,1]
[null,null,"Acabados Exteriores",8.3135332790740479E-2,null,null,null,null,null,null,null,null,null,null,null,null,null,null,null,null,null,null,null,null,null,null,null,null,null,null,null,null,null,null,null,null,null,null,null,null,null,null,null,null,null,null,null,null,null,null,null,null,null,null,null,null,null,null,null,null,null,null,null,null,null,null,null,null,null,null,null,null,null,0,1,1,1,1,1,1,1,1]
[null,null,"Accesos",2.0699614946185826E-2,null,null,null,null,null,null,null,null,null,null,null,null,null,null,null,null,null,null,null,null,null,null,null,null,null,null,null,null,null,null,null,null,null,null,null,null,null,null,null,null,null,null,null,null,null,null,null,null,null,null,null,null,null,null,null,null,null,null,null,null,null,null,null,null,null,null,null,null,null,null,null,null,null,null,null,null,null,0,1,1]
[null,null,"Canceleria",3.4141592254777996E-2,null,null,null,null,null,null,null,null,null,null,null,null,null,null,null,null,null,null,null,null,null,null,null,null,null,null,null,null,null,null,null,null,null,null,null,null,null,null,null,null,null,null,null,null,null,null,null,null,null,null,null,null,null,null,null,null,null,null,null,null,null,null,null,null,null,null,null,null,null,null,null,null,null,null,null,null,null,null,null,0,1,1,1]
[null,null,"Mobiliario Fijo",5.7770934058057694E-2,null,null,null,null,null,null,null,null,null,null,null,null,null,null,null,null,null,null,null,null,null,null,null,null,null,null,null,null,null,null,null,null,null,null,null,null,null,null,null,null,null,null,null,null,null,null,null,null,null,null,null,null,null,null,null,null,null,null,null,null,null,null,null,null,null,null,null,null,null,null,null,null,null,null,null,null,null,null,null,null,null,null,0,1,1,1,1,1,1]
[null,null,"Guarda",6.1718169764081315E-3,null,null,null,null,null,null,null,null,null,null,null,null,null,null,null,null,null,null,null,null,null,null,null,null,null,null,null,null,null,null,null,null,null,null,null,null,null,null,null,null,null,null,null,null,null,null,null,null,null,null,null,null,null,null,null,null,null,null,null,null,null,null,null,null,null,null,null,null,null,null,null,null,null,null,null,null,null,null,null,null,null,null,null,null,null,null,null,null,0,1]
[null,null,{"$f":"+IF(D18=\"\",\"\",\"Equipo\")","v":"Equipo"},2.2595398851057429E-2,null,null,null,null,null,null,null,null,null,null,null,null,null,null,null,null,null,null,null,null,null,null,null,null,null,null,null,null,null,null,null,null,null,null,null,null,null,null,null,null,null,null,null,null,null,null,null,null,null,null,null,null,null,null,null,null,null,null,null,null,null,null,null,null,null,null,null,null,null,null,null,null,null,null,null,null,null,null,null,null,null,null,null,null,null,null,null,null,null,0,1,1]
[null,null,{"$f":"+IF(D19=\"\",\"\",\"Accesorias\")","v":"Accesorias"},5.4222911532851907E-2,null,null,null,null,null,null,null,null,null,null,null,null,null,null,null,null,null,null,null,null,null,null,null,null,null,null,null,null,null,null,null,null,null,null,null,null,null,null,null,null,null,null,null,null,null,null,null,null,null,null,null,null,null,null,null,null,null,null,null,null,null,null,null,null,null,null,null,null,null,null,null,null,null,null,null,null,null,null,null,null,null,null,null,null,null,null,null,null,null,null,null,0,1,1,1,1]
[null,null,null,null,null,null,null,null,null,null,null,null,null,null,null,null,null,null,null,null,null,null,null,null,null,null,null,null,null,null,null,null,null,null,null,null,null,null,null,null,null,null,null,null,null,null,null,null,null,null,null,null,null,null,null,null,null,null,null,null,null,null,null,null,null,null,null,null,null,null,null,null,null,null,null,null,null,null,null,null,null,null,null,null,null,null,null,null,null,null,null,null,null,null,null,null,null,null,null,null,0]
[]
[null,null,null,null,"Mes 13",null,null,null,"Mes 14",null,null,null,"Mes 15",null,null,null,"Mes 16",null,null,null,"Mes 17",null,null,null,"Mes 18",null,null,null,"Mes 19",null,null,null,"Mes 20",null,null,null,"Mes 21",null,null,null,"Mes 22",null,null,null,"Mes 23",null,null,null,"Mes 24"]
[null,{"$f":"+B4","v":"Vivienda Alta Residencial 4"},{"$f":"+C4","v":"Concepto"},{"$f":"+D4","v":"%"},"S49","S50","S51","S52","S53","S54","S55","S56","S57","S58","S59","S60","S61","S62","S63","S64","S65","S66","S67","S68","S69","S70","S71","S72","S73","S74","S75","S76","S77","S78","S79","S80","S81","S82","S83","S84","S85","S86","S87","S88","S89","S90","S91","S92","S93","S94","S95","S96"]
[null,null,{"$f":"+C5","v":"Cimentacion"},8.908656409482929E-2]
[null,null,"Estructura De Concreto",0.16405393791674722]
[null,null,"Albañileria",8.7098322189605074E-2]
[null,null,"Instalacion Hidraulica",1.1940689831090215E-2]
[null,null,"Instalacion Sanitaria",9.9749316246131991E-3]
[null,null,"Instalacion Electrica",1.1899048478743708E-2]
[null,null,"Instalacion De Gas",1.0400339818924258E-3]
[null,null,"Acabados Interiores",0.34333385066052607,1,1,1,1,1,1,1,1,1,1,1,1,1,1,1,1,1,1,1,1,1,1]
[null,null,"Acabados Exteriores",8.3135332790740479E-2,null,null,null,null,null,null,null,null,null,null,null,null,null,null,null,null,null,null,null,null,null,0,1,1,1,1,1,1,1,1]
[null,null,"Accesos",2.0699614946185826E-2,null,null,null,null,null,null,null,null,null,null,null,null,null,null,null,null,null,null,null,null,null,null,null,null,null,null,null,null,null,0,1,1]
[null,null,"Canceleria",3.4141592254777996E-2,null,null,null,null,null,null,null,null,null,null,null,null,null,null,null,null,null,null,null,null,null,null,null,null,null,null,null,null,null,null,null,0,1,1,1]
[null,null,"Mobiliario Fijo",5.7770934058057694E-2,null,null,null,null,null,null,null,null,null,null,null,null,null,null,null,null,null,null,null,null,null,null,null,null,null,null,null,null,null,null,null,null,null,null,0,1,1,1,1,1,1]
[null,null,"Guarda",6.1718169764081315E-3,null,null,null,null,null,null,null,null,null,null,null,null,null,null,null,null,null,null,null,null,null,null,null,null,null,null,null,null,null,null,null,null,null,null,null,null,null,null,null,null,0,1]
[null,null,"Equipo",{"$f":"+D18","v":2.2595398851057429E-2},null,null,null,null,null,null,null,null,null,null,null,null,null,null,null,null,null,null,null,null,null,null,null,null,null,null,null,null,null,null,null,null,null,null,null,null,null,null,null,null,null,0,1,1]
[null,null,"Accesorias",{"$f":"+D19","v":5.4222911532851907E-2},null,null,null,null,null,null,null,null,null,null,null,null,null,null,null,null,null,null,null,null,null,null,null,null,null,null,null,null,null,null,null,null,null,null,null,null,null,null,null,null,null,null,null,0,1,1,1,1]
[]
[]
[null,"Información general",null,null,{"$f":"TODAY()","v":"2021-07-09"}]
[]
[null,null,"Nombre del cliente:",null,{"$f":"+RegistroInf!C1","v":0}]
[]
[null,null,"Ubicación del Inmueble:",null,{"$f":"+RegistroInf!C2","v":0}]
[]
[]
[null,null,"Estado:",null,{"$f":"+RegistroInf!C4","v":0}]
[]
[null,null,"Ciudad o Municipio:",null,{"$f":"+RegistroInf!C5","v":0}]

{"sheet":"Solicitud","index":4,"n_rows":115,"n_cols":15,"rows_kept":115,"cut":false,"hidden":true,"merged":[[47,1,47,3],[53,1,53,3],[76,9,79,14],[39,12,39,13],[41,12,41,13],[51,5,52,6],[59,5,60,6],[58,5,58,6],[50,5,50,6],[47,9,51,15],[61,1,61,3],[67,5,67,6],[1,1,1,15],[5,9,5,11],[8,2,9,3],[8,4,9,7],[6,4,6,6],[6,2,6,3],[13,4,13,6],[37,12,37,13],[5,12,5,15],[13,2,13,3],[15,2,15,3],[17,2,17,3],[23,1,23,3],[11,2,11,3],[19,2,19,3],[11,4,11,6],[115,2,118,6],[115,8,118,9],[115,11,117,14],[118,11,118,14],[68,5,69,6],[69,12,69,15],[112,2,112,5],[114,2,114,6],[81,4,81,5],[82,4,82,5],[74,9,74,15],[114,8,114,9],[114,11,114,14]]}
[]
[null,"RESUMEN DEL CLIENTE"]
[]
[]
[null,"Información general",null,null,null,null,null,null,null,"Elementos adicionales"]
[null,null,null,null,null,null,null,null,null,"Obras complementarias",null,null,"Instalaciones especiales"]
[null,null,"Nombre del cliente:",null,{"$f":"+RegistroInf!C1","v":0},null,null,null,null,null,"Terraza:",{"$f":"+IF(RegistroInf!M34=1,\"\",\"Si\")","v":""},null,"Aire acondicionado:",{"$f":"+IF(RegistroInf!M51=1,\"\",\"Si\")","v":""}]
[null,null,null,null,null,null,null,null,null,null,"Roof garden:",{"$f":"+IF(RegistroInf!M35=1,\"\",\"Si\")","v":""},null,"Sistemas inteligentes:",{"$f":"+IF(RegistroInf!M52=1,\"\",\"Si\")","v":""}]
[null,null,"Ubicación del Inmueble:",null,{"$f":"+RegistroInf!C2","v":0},null,null,null,null,null,"Palapas",{"$f":"+IF(RegistroInf!M36=1,\"\",\"Si\")","v":""},null,"Biodigestores:",{"$f":"+IF(RegistroInf!M53=1,\"\",\"Si\")","v":""}]
[null,null,null,null,null,null,null,null,null,null,"Cubiertas:",{"$f":"+IF(RegistroInf!M37=1,\"\",\"Si\")","v":""},null,"Calefaccion:",{"$f":"+IF(RegistroInf!M54=1,\"\",\"Si\")","v":""}]
[null,null,null,null,null,null,null,null,null,null,"Bodega:",{"$f":"+IF(RegistroInf!M38=1,\"\",\"Si\")","v":""},null,"Circuito cerrado de CCTV:",{"$f":"+IF(RegistroInf!M55=1,\"\",\"Si\")","v":""}]
[null,null,"Estado:",null,{"$f":"+RegistroInf!C4","v":0},null,null,null,null,null,"Bardas perimetrales:",{"$f":"+IF(RegistroInf!M39=1,\"\",\"Si\")","v":""},null,"Hidroneumatico:",{"$f":"+IF(RegistroInf!M56=1,\"\",\"Si\")","v":""}]
[null,null,null,null,null,null,null,null,null,null,"Áreas deportivas:",{"$f":"+IF(RegistroInf!M40=1,\"\",\"Si\")","v":""},null,"Sistemas ecologicos:",{"$f":"+IF(RegistroInf!M57=1,\"\",\"Si\")","v":""}]
[null,null,"Ciudad o Municipio:",null,{"$f":"+RegistroInf!C5","v":0},null,null,null,null,null,"Áreas adicionales:",{"$f":"+IF(RegistroInf!M41=1,\"\",\"Si\")","v":""},null,"Paneles solares:",{"$f":"+IF(RegistroInf!M58=1,\"\",\"Si\")","v":""}]
[null,null,null,null,null,null,null,null,null,null,"Sala de Usos Multiples",{"$f":"+IF(RegistroInf!M42=1,\"\",\"Si\")","v":""},null,"Sistema  de captacion pluvial:",{"$f":"+IF(RegistroInf!M59=1,\"\",\"Si\")","v":""}]
[null,null,"Superficie Construida:",null,{"$f":"+RegistroInf!C3","v":0},"m2",null,null,null,null,"Sala de TV:",{"$f":"+IF(RegistroInf!M43=1,\"\",\"Si\")","v":""},null,"Otros:",{"$f":"+IF(RegistroInf!M60=1,\"\",\"Si\")","v":""}]
[null,null,null,null,null,null,null,null,null,null,"Gimnasio:",{"$f":"+IF(RegistroInf!M44=1,\"\",\"Si\")","v":""}]
[null,null,"Modelo de  Vivienda Seleccionada:",null,{"$f":"+Diagrama!B4","v":"Vivienda Alta Residencial 4"},null,null,null,null,null,"Estudio:",{"$f":"+IF(RegistroInf!M45=1,\"\",\"Si\")","v":""}]
[null,null,null,null,null,null,null,null,null,null,"Alcoba:",{"$f":"+IF(RegistroInf!M46=1,\"\",\"Si\")","v":""}]
[null,null,"Uso General del Proyecto:",null,"Habitacional (Habitacional/Mixto)",null,null,null,null,null,"Alberca:",{"$f":"+IF(RegistroInf!M47=1,\"\",\"Si\")","v":""}]
[null,null,null,null,null,null,null,null,null,null,"Elevadores:",{"$f":"+IF(RegistroInf!M48=1,\"\",\"Si\")","v":""}]
[]
[null,"Partidas",null,null,null,null,null,null,null,"Estructura"]
[null,"Concepto",null,null,"Monto","%"]
[null,null,null,"Cimentación:",{"$f":"+RegistroInf!W9","v":0},{"$f":"+RegistroInf!X9","v":{"$error":"#DIV/0!"}},null,null,null,null,null,"Cocina:",{"$f":"+RegistroInf!Q27","v":0}]
[null,null,null,"Estructura De Concreto:",{"$f":"+RegistroInf!W10","v":0},{"$f":"+RegistroInf!X10","v":{"$error":"#DIV/0!"}},null,null,null,null,null,"Sala:",{"$f":"+RegistroInf!Q28","v":0}]
[null,null,null,"Albañileria:",{"$f":"+RegistroInf!W11","v":0},{"$f":"+RegistroInf!X11","v":{"$error":"#DIV/0!"}},null,null,null,null,null,"Comedor:",{"$f":"+RegistroInf!Q29","v":0}]
[null,null,null,"Instalacion Hidraulica:",{"$f":"+RegistroInf!W12","v":0},{"$f":"+RegistroInf!X12","v":{"$error":"#DIV/0!"}},null,null,null,null,null,"Baños:",{"$f":"+RegistroInf!Q30","v":0}]
[null,null,null,"Instalacion Sanitaria:",{"$f":"+RegistroInf!W13","v":0},{"$f":"+RegistroInf!X13","v":{"$error":"#DIV/0!"}},null,null,null,null,null,"Recámaras:",{"$f":"+RegistroInf!Q31","v":0}]
[null,null,null,"Instalacion Electrica:",{"$f":"+RegistroInf!W14","v":0},{"$f":"+RegistroInf!X14","v":{"$error":"#DIV/0!"}},null,null,null,null,null,"Vestidores:",{"$f":"+RegistroInf!Q32","v":0}]
[null,null,null,"Instalacion De Gas:",{"$f":"+RegistroInf!W15","v":0},{"$f":"+RegistroInf!X15","v":{"$error":"#DIV/0!"}},null,null,null,null,null,"Estacionamientos:",{"$f":"+RegistroInf!Q33","v":0}]
[null,null,null,"Acabados Interiores:",{"$f":"+RegistroInf!W16","v":0},{"$f":"+RegistroInf!X16","v":{"$error":"#DIV/0!"}},null,null,null,null,null,"Cuarto de Servicio:",{"$f":"+RegistroInf!Q34","v":0}]
[null,null,null,"Acabados Exteriores:",{"$f":"+RegistroInf!W17","v":0},{"$f":"+RegistroInf!X17","v":{"$error":"#DIV/0!"}},null,null,null,null,null,"Espacio con Acceso Independiente:",{"$f":"+RegistroInf!Q35","v":0}]
[null,null,null,"Accesos:",{"$f":"+RegistroInf!W18","v":0},{"$f":"+RegistroInf!X18","v":{"$error":"#DIV/0!"}}]
[null,null,null,"Canceleria:",{"$f":"+RegistroInf!W19","v":0},{"$f":"+RegistroInf!X19","v":{"$error":"#DIV/0!"}}]
[null,null,null,"Mobiliario Fijo:",{"$f":"+RegistroInf!W20","v":0},{"$f":"+RegistroInf!X20","v":{"$error":"#DIV/0!"}},null,null,null,"Resultado evaluación"]
[null,null,null,"Guarda:",{"$f":"+RegistroInf!W21","v":0},{"$f":"+RegistroInf!X21","v":{"$error":"#DIV/0!"}}]
[null,null,null,{"$f":"+IF(RegistroInf!Q22=\"\",\"Equipo (N/A):\",\"Equipo:\")","v":"Equipo:"},{"$f":"IF(RegistroInf!Q22=\"\",0,RegistroInf!W22)","v":0},{"$f":"IF(RegistroInf!Q22=\"\",0,RegistroInf!X22)","v":{"$error":"#DIV/0!"}},null,null,null,null,"Cimentación:",{"$f":"IF(RegistroInf!C90=\"\",\"\",RegistroInf!C90)","v":""},{"$f":"IF(RegistroInf!C94=\"\",\"\",RegistroInf!C94)","v":""}]
[null,null,null,{"$f":"+IF(RegistroInf!Q23=\"\",\"Accesorias (N/A):\",\"Accesorias:\")","v":"Accesorias:"},{"$f":"IF(RegistroInf!Q23=\"\",0,RegistroInf!W23)","v":0},{"$f":"IF(RegistroInf!Q23=\"\",0,RegistroInf!X23)","v":{"$error":"#DIV/0!"}}]
[null,null,null,{"$f":"+IF(RegistroInf!V26=1,\"Obras complementarias (N/A):\",\"Obras complementarias:\")","v":"Obras complementarias (N/A):"},{"$f":"+IF(RegistroInf!V26=1,0,RegistroInf!W26)","v":0},{"$f":"+IF(RegistroInf!V26=1,0,RegistroInf!X26)","v":0},null,null,null,null,"Losas de Entrepiso:",{"$f":"IF(RegistroInf!C91=\"\",\"\",RegistroInf!C91)","v":""},{"$f":"IF(RegistroInf!C95=\"\",\"\",RegistroInf!C95)","v":""}]
[null,null,null,{"$f":"+IF(RegistroInf!V27=1,\"Instalaciones especiales (N/A):\",\"Instalaciones especiales:\")","v":"Instalaciones especiales (N/A):"},{"$f":"+IF(RegistroInf!V27=1,0,RegistroInf!W27)","v":0},{"$f":"+IF(RegistroInf!V27=1,0,RegistroInf!X27)","v":0}]
[null,null,null,"Subtotal:",{"$f":"+SUM(E25:E41)","v":0},null,null,null,null,null,"Muros:",{"$f":"IF(RegistroInf!C92=\"\",\"\",RegistroInf!C92)","v":""},{"$f":"IF(RegistroInf!C96=\"\",\"\",RegistroInf!C96)","v":""}]
[null,null,null,"FIC:",{"$f":"+RegistroInf!C6","v":0}]
[null,null,null,"Total Estimado:",{"$f":"+E42*E43","v":0}]
[]
[]
[null,"Calidad seleccionada",null,null,null,null,null,null,null,"Comentarios"]
[null,"Carpintería",null,null,"Calidad",null,null,null,null,{"$f":"IF(RegistroInf!C52=\"\",\"Sin comentarios\",RegistroInf!C52)","v":"Sin comentarios"}]
[null,null,null,"Puertas:",{"$f":"+RegistroInf!C63","v":0}]
[null,null,null,"Closets:",{"$f":"+RegistroInf!C64","v":0}]
[null,null,null,"Cocina integral:",{"$f":"+RegistroInf!C65","v":0},"Especificación de Otro"]
[null,null,null,"Otro:",{"$f":"+RegistroInf!C66","v":0},{"$f":"IF(RegistroInf!C8=\"\",\"Sin especificar en la solicitud\",RegistroInf!C8)","v":"Sin especificar en la solicitud"}]
[]
[null,"Ventanería",null,null,"Calidad",null,null,null,null,"Resultado evaluación"]
[null,null,null,"Cristales:",{"$f":"+RegistroInf!C68","v":0}]
[null,null,null,"Canceleria:",{"$f":"+RegistroInf!C69","v":0},null,null,null,null,null,"Valor del terreno:",{"$f":"RegistroInf!F3*1","v":0}]
[null,null,null,"Portones / rejas:",{"$f":"+RegistroInf!C70","v":0}]
[null,null,null,"Protecciones:",{"$f":"+RegistroInf!C71","v":0},null,null,null,null,null,"Valor físico proyectado:",{"$f":"+RegistroInf!F4","v":{"$error":"#DIV/0!"}}]
[null,null,null,"Barandales:",{"$f":"+RegistroInf!C72","v":0},"Especificación de Otro"]
[null,null,null,"Otro:",{"$f":"+RegistroInf!C73","v":0},{"$f":"IF(RegistroInf!C15=\"\",\"Sin especificar en la solicitud\",RegistroInf!C15)","v":"Sin especificar en la solicitud"},null,null,null,null,"Costo del avalúo aproximado:",{"$f":"+RegistroInf!F5","v":0}]
[]
[null,"Acabados interiores",null,null,"Calidad",null,null,null,null,null,"Presupuesto estimado:",{"$f":"+RegistroInf!F1","v":{"$error":"#DIV/0!"}}]
[null,null,null,"Pisos: ",{"$f":"+RegistroInf!C75","v":0}]
[null,null,null,"Azulejos:",{"$f":"+RegistroInf!C76","v":0},null,null,null,null,null,"Valor unitario:",{"$f":"+RegistroInf!F2","v":{"$error":"#DIV/0!"}}]
[null,null,null,"Plafones:",{"$f":"+RegistroInf!C77","v":0}]
[null,null,null,"Recubrimientos en muros:",{"$f":"+RegistroInf!C78","v":0}]
[null,null,null,"Muebles sanitarios:",{"$f":"+RegistroInf!C79","v":0}]
[null,null,null,"Tinas / Jacuzzi",{"$f":"+RegistroInf!C80","v":0},"Especificación de Otro"]
[null,null,null,"Otro:",{"$f":"+RegistroInf!C81","v":0},{"$f":"IF(RegistroInf!C24=\"\",\"Sin especificar en la solicitud\",RegistroInf!C24)","v":"Sin especificar en la solicitud"}]
[null,null,null,null,null,null,null,null,null,"Firma",null,null,{"$f":"+NOW()","v":"2021-07-09T19:06:14.890"}]
[]
[]
[]
[]
[null,null,null,null,null,null,null,null,null,{"$f":"+E7","v":0}]
[]
[null,null,null,null,null,null,null,null,null,"Este Presupuesto y Programa de Obra tiene carácter informativo.\n\nPara mayor información consulta scotiabank.com.mx/hipotecario"]
[]
[]
[]
[]
[]
[]
[]
[]
[]
[]
[]
[]
[]
[]
[]
[]
[]
[]
[]
[]
[]
[]
[]
[]
[]
[]
[]
[]
[]
[]
[]
[]
[]
[]
[]
[]
[]
[null,null,"Comentarios",null,null,null,null,null,null,null,null,"Firma"]

{"sheet":"Presupuesto y Programa de Obra","index":5,"n_rows":19,"n_cols":1,"rows_kept":19,"cut":false,"hidden":false,"merged":[[18,0,18,3]]}
[]
[]
[]
[]
[]
[]
[]
[]
[]
[]
[]
[]
[]
[]
[]
[]
[]
[]
[{"$f":"+TODAY()","v":"2021-07-09"}]